Publisher Label,Publisher URI,"Payment Date","Organisational Unit","Beneficiary Name","Amount (£)","Irrecoverable VAT Amount (£)","Purpose","Merchant Category Code"
"Wolverhampton City Council","http://opendatacommunities.org/id/metropolitan-district-council/wolverhampton","11/09/2017","Executive","GLOUCESTER SOUTH PENRITH","21.35","-","Subsistence","5812"
"Wolverhampton City Council","http://opendatacommunities.org/id/metropolitan-district-council/wolverhampton","18/09/2017","Executive","WCT CATERING","5.50","-","Subsistence","5812"
"Wolverhampton City Council","http://opendatacommunities.org/id/metropolitan-district-council/wolverhampton","04/10/2017","Executive","LUL TICKET MACHINE","20.00","-","Public Transport","4112"
"Wolverhampton City Council","http://opendatacommunities.org/id/metropolitan-district-council/wolverhampton","04/10/2017","Executive","PRET A MANGER","5.64","-","Subsistence","5812"
"Wolverhampton City Council","http://opendatacommunities.org/id/metropolitan-district-council/wolverhampton","13/10/2017","Executive","ROBERTSHORT MATLOCK","8.05","-","Subsistence","5811"
"Wolverhampton City Council","http://opendatacommunities.org/id/metropolitan-district-council/wolverhampton","13/11/2017","Executive","SUBWAY","5.00","-","Subsistence","5812"
"Wolverhampton City Council","http://opendatacommunities.org/id/metropolitan-district-council/wolverhampton","22/11/2017","Executive","STARBUCKS","2.46","-","Subsistence","5812"
"Wolverhampton City Council","http://opendatacommunities.org/id/metropolitan-district-council/wolverhampton","22/11/2017","Executive","STARBUCKS","3.00","-","Subsistence","5812"
"Wolverhampton City Council","http://opendatacommunities.org/id/metropolitan-district-council/wolverhampton","06/12/2017","Executive","PPXC TRAINS CATERING","9.15","-","Public Transport","5811"
"Wolverhampton City Council","http://opendatacommunities.org/id/metropolitan-district-council/wolverhampton","06/12/2017","Executive","PPXC TRAINS CATERING","5.42","-","Public Transport","5811"
"Wolverhampton City Council","http://opendatacommunities.org/id/metropolitan-district-council/wolverhampton","08/12/2017","Executive","IZ PRIVATE HIRE","10.40","-","Public Transport","4121"
"Wolverhampton City Council","http://opendatacommunities.org/id/metropolitan-district-council/wolverhampton","08/12/2017","Executive","BRASSERIE BLANC","19.17","-","Subsistence","5812"
"Wolverhampton City Council","http://opendatacommunities.org/id/metropolitan-district-council/wolverhampton","08/12/2017","Executive","PUMPKIN","10.42","-","Subsistence","5811"
"Wolverhampton City Council","http://opendatacommunities.org/id/metropolitan-district-council/wolverhampton","13/12/2017","Executive","WCT CATERING","6.35","-","Subsistence","5812"
"Wolverhampton City Council","http://opendatacommunities.org/id/metropolitan-district-council/wolverhampton","14/12/2017","Executive","STARBUCKS","1.29","-","Subsistence","5812"
"Wolverhampton City Council","http://opendatacommunities.org/id/metropolitan-district-council/wolverhampton","19/12/2017","Executive","LUL TICKET MACHINE","30.00","-","Public Transport","4112"
"Wolverhampton City Council","http://opendatacommunities.org/id/metropolitan-district-council/wolverhampton","30/01/2017","Finance","CTRIP","114.53","-","Public Transport","4511"
"Wolverhampton City Council","http://opendatacommunities.org/id/metropolitan-district-council/wolverhampton","03/04/2017","Finance","TRAINLINE","113.73","-","Public transport","4112"
"Wolverhampton City Council","http://opendatacommunities.org/id/metropolitan-district-council/wolverhampton","04/04/2017","Finance","PREMIER INN","185.50","-","Accommodation","7011"
"Wolverhampton City Council","http://opendatacommunities.org/id/metropolitan-district-council/wolverhampton","06/04/2017","Finance","TRAINLINE","85.73","-","Public transport","4112"
"Wolverhampton City Council","http://opendatacommunities.org/id/metropolitan-district-council/wolverhampton","06/04/2017","Finance","TRAINLINE","144.33","-","Public transport","4112"
"Wolverhampton City Council","http://opendatacommunities.org/id/metropolitan-district-council/wolverhampton","06/04/2017","Finance","TRAINLINE","372.81","-","Public transport","4112"
"Wolverhampton City Council","http://opendatacommunities.org/id/metropolitan-district-council/wolverhampton","10/04/2017","Finance","TRAINLINE","90.27","-","Public transport","4112"
"Wolverhampton City Council","http://opendatacommunities.org/id/metropolitan-district-council/wolverhampton","13/04/2017","Finance","Lastminute.com","278.00","-","Accommodation","7011"
"Wolverhampton City Council","http://opendatacommunities.org/id/metropolitan-district-council/wolverhampton","13/04/2017","Finance","TRAINLINE","57.73","-","Public transport","4112"
"Wolverhampton City Council","http://opendatacommunities.org/id/metropolitan-district-council/wolverhampton","13/04/2017","Finance","WEST COAST TRAINS","-361.20","-","Public transport","4112"
"Wolverhampton City Council","http://opendatacommunities.org/id/metropolitan-district-council/wolverhampton","13/04/2017","Finance","WEST COAST TRAINS","1107.50","-","Public transport","4112"
"Wolverhampton City Council","http://opendatacommunities.org/id/metropolitan-district-council/wolverhampton","19/04/2017","Finance","TRAINLINE","26.27","-","Public transport","4112"
"Wolverhampton City Council","http://opendatacommunities.org/id/metropolitan-district-council/wolverhampton","19/04/2017","Finance","TRAINLINE","187.17","-","Public transport","4112"
"Wolverhampton City Council","http://opendatacommunities.org/id/metropolitan-district-council/wolverhampton","19/04/2017","Finance","VIRGIN TRAINS","53.10","-","Public transport","4112"
"Wolverhampton City Council","http://opendatacommunities.org/id/metropolitan-district-council/wolverhampton","21/04/2017","Finance","TRAINLINE","187.17","-","Public transport","4112"
"Wolverhampton City Council","http://opendatacommunities.org/id/metropolitan-district-council/wolverhampton","25/04/2017","Finance","WEST COAST TRAINS","364.00","-","Public transport","4112"
"Wolverhampton City Council","http://opendatacommunities.org/id/metropolitan-district-council/wolverhampton","05/06/2017","Finance","VIRGIN TRAINS","67.00","-","Public transport","4112"
"Wolverhampton City Council","http://opendatacommunities.org/id/metropolitan-district-council/wolverhampton","05/06/2017","Finance","WEST COAST TRAINS","11.80","-","Public transport","4112"
"Wolverhampton City Council","http://opendatacommunities.org/id/metropolitan-district-council/wolverhampton","05/06/2017","Finance","WEST COAST TRAINS","145.10","-","Public transport","4112"
"Wolverhampton City Council","http://opendatacommunities.org/id/metropolitan-district-council/wolverhampton","05/06/2017","Finance","WEST COAST TRAINS","182.00","-","Public transport","4112"
"Wolverhampton City Council","http://opendatacommunities.org/id/metropolitan-district-council/wolverhampton","05/06/2017","Finance","WEST COAST TRAINS","182.00","-","Public transport","4112"
"Wolverhampton City Council","http://opendatacommunities.org/id/metropolitan-district-council/wolverhampton","06/06/2017","Finance","CROSS COUNTRY TRAINS","23.40","-","Public transport","4112"
"Wolverhampton City Council","http://opendatacommunities.org/id/metropolitan-district-council/wolverhampton","06/06/2017","Finance","EAST MIDLANDS TRAINS","134.00","-","Public transport","4112"
"Wolverhampton City Council","http://opendatacommunities.org/id/metropolitan-district-council/wolverhampton","06/06/2017","Finance","LONDON MIDLAND","8.40","-","Public transport","4112"
"Wolverhampton City Council","http://opendatacommunities.org/id/metropolitan-district-council/wolverhampton","06/06/2017","Finance","VIRGIN TRAINS","58.00","-","Public transport","4112"
"Wolverhampton City Council","http://opendatacommunities.org/id/metropolitan-district-council/wolverhampton","06/06/2017","Finance","VIRGIN TRAINS","23.00","-","Public transport","4112"
"Wolverhampton City Council","http://opendatacommunities.org/id/metropolitan-district-council/wolverhampton","06/06/2017","Finance","VIRGIN TRAINS","18.00","-","Public transport","4112"
"Wolverhampton City Council","http://opendatacommunities.org/id/metropolitan-district-council/wolverhampton","06/06/2017","Finance","VIRGIN TRAINS","23.00","-","Public transport","4112"
"Wolverhampton City Council","http://opendatacommunities.org/id/metropolitan-district-council/wolverhampton","06/06/2017","Finance","VIRGIN TRAINS","-23.00","-","Public transport","4112"
"Wolverhampton City Council","http://opendatacommunities.org/id/metropolitan-district-council/wolverhampton","06/06/2017","Finance","VIRGIN TRAINS","-23.00","-","Public transport","4112"
"Wolverhampton City Council","http://opendatacommunities.org/id/metropolitan-district-council/wolverhampton","06/06/2017","Finance","EB CONNECTED LOCAL GO","354.00","-","Training Expenses","8999"
"Wolverhampton City Council","http://opendatacommunities.org/id/metropolitan-district-council/wolverhampton","07/06/2017","Finance","EAST MIDLANDS TRAINS","84.00","-","Public transport","4112"
"Wolverhampton City Council","http://opendatacommunities.org/id/metropolitan-district-council/wolverhampton","07/06/2017","Finance","WEST COAST TRAINS","23.00","-","Public transport","4112"
"Wolverhampton City Council","http://opendatacommunities.org/id/metropolitan-district-council/wolverhampton","12/06/2017","Finance","TRAVELODGE","81.95","-","Public transport","7011"
"Wolverhampton City Council","http://opendatacommunities.org/id/metropolitan-district-council/wolverhampton","12/06/2017","Finance","VIRGIN TRAINS","43.55","-","Public transport","4112"
"Wolverhampton City Council","http://opendatacommunities.org/id/metropolitan-district-council/wolverhampton","13/06/2017","Finance","CROSS COUNTRY TRAINS","113.60","-","Public transport","4112"
"Wolverhampton City Council","http://opendatacommunities.org/id/metropolitan-district-council/wolverhampton","13/06/2017","Finance","LONDON MIDLAND","9.00","-","Public transport","4112"
"Wolverhampton City Council","http://opendatacommunities.org/id/metropolitan-district-council/wolverhampton","13/06/2017","Finance","VIRGIN TRAINS","44.00","-","Public transport","4112"
"Wolverhampton City Council","http://opendatacommunities.org/id/metropolitan-district-council/wolverhampton","13/06/2017","Finance","VIRGIN TRAINS","43.55","-","Public transport","4112"
"Wolverhampton City Council","http://opendatacommunities.org/id/metropolitan-district-council/wolverhampton","13/06/2017","Finance","WEST COAST TRAINS","56.80","-","Public transport","4112"
"Wolverhampton City Council","http://opendatacommunities.org/id/metropolitan-district-council/wolverhampton","14/06/2017","Finance","VIRGIN TRAINS","227.55","-","Public transport","4112"
"Wolverhampton City Council","http://opendatacommunities.org/id/metropolitan-district-council/wolverhampton","16/06/2017","Finance","TRAVELODGE","140.00","-","Accommodation costs","7011"
"Wolverhampton City Council","http://opendatacommunities.org/id/metropolitan-district-council/wolverhampton","19/06/2017","Finance","TRAVELODGE","161.75","-","Accommodation costs","7011"
"Wolverhampton City Council","http://opendatacommunities.org/id/metropolitan-district-council/wolverhampton","19/06/2017","Finance","VIRGIN TRAINS","11.00","-","Public transport","4112"
"Wolverhampton City Council","http://opendatacommunities.org/id/metropolitan-district-council/wolverhampton","20/06/2017","Finance","FTPE","67.20","-","Public transport","4112"
"Wolverhampton City Council","http://opendatacommunities.org/id/metropolitan-district-council/wolverhampton","20/06/2017","Finance","FTPE","67.20","-","Public transport","4112"
"Wolverhampton City Council","http://opendatacommunities.org/id/metropolitan-district-council/wolverhampton","29/06/2017","Finance","TRAINLINE","-30.40","-","Public transport","4112"
"Wolverhampton City Council","http://opendatacommunities.org/id/metropolitan-district-council/wolverhampton","30/06/2017","Finance","VIRGIN TRAINS","51.00","-","Public transport","4112"
"Wolverhampton City Council","http://opendatacommunities.org/id/metropolitan-district-council/wolverhampton","01/09/2017","Finance","TRAVELODGE","131.00","-","Accommodation Costs","7011"
"Wolverhampton City Council","http://opendatacommunities.org/id/metropolitan-district-council/wolverhampton","01/09/2017","Finance","VIRGIN TRAINS","182.00","-","Public Transport","4112"
"Wolverhampton City Council","http://opendatacommunities.org/id/metropolitan-district-council/wolverhampton","05/09/2017","Finance","LONDON MIDLAND","54.30","-","Public Transport","4112"
"Wolverhampton City Council","http://opendatacommunities.org/id/metropolitan-district-council/wolverhampton","05/09/2017","Finance","VIRGIN TRAINS","165.00","-","Public Transport","4112"
"Wolverhampton City Council","http://opendatacommunities.org/id/metropolitan-district-council/wolverhampton","10/09/2017","Finance","TRAVELODGE","-129.00","-","Accommodation Costs","7011"
"Wolverhampton City Council","http://opendatacommunities.org/id/metropolitan-district-council/wolverhampton","11/09/2017","Finance","PREMIER INN","267.50","-","Accommodation Costs","7011"
"Wolverhampton City Council","http://opendatacommunities.org/id/metropolitan-district-council/wolverhampton","11/09/2017","Finance","VIRGIN TRAINS","160.00","-","Public Transport","4112"
"Wolverhampton City Council","http://opendatacommunities.org/id/metropolitan-district-council/wolverhampton","11/09/2017","Finance","VIRGIN TRAINS","180.00","-","Public Transport","4112"
"Wolverhampton City Council","http://opendatacommunities.org/id/metropolitan-district-council/wolverhampton","11/09/2017","Finance","VIRGIN TRAINS","137.30","-","Public Transport","4112"
"Wolverhampton City Council","http://opendatacommunities.org/id/metropolitan-district-council/wolverhampton","11/09/2017","Finance","VIRGIN TRAINS","118.55","-","Public Transport","4112"
"Wolverhampton City Council","http://opendatacommunities.org/id/metropolitan-district-council/wolverhampton","13/09/2017","Finance","VIRGIN TRAINS","135.10","-","Public Transport","4112"
"Wolverhampton City Council","http://opendatacommunities.org/id/metropolitan-district-council/wolverhampton","13/09/2017","Finance","VIRGIN TRAINS","728.00","-","Public Transport","4112"
"Wolverhampton City Council","http://opendatacommunities.org/id/metropolitan-district-council/wolverhampton","19/09/2017","Finance","VIRGIN TRAINS","131.00","-","Public Transport","4112"
"Wolverhampton City Council","http://opendatacommunities.org/id/metropolitan-district-council/wolverhampton","19/09/2017","Finance","VIRGIN TRAINS","63.00","-","Public Transport","4112"
"Wolverhampton City Council","http://opendatacommunities.org/id/metropolitan-district-council/wolverhampton","20/09/2017","Finance","CROSS COUNTRY TRAINS","180.60","-","Public Transport","4112"
"Wolverhampton City Council","http://opendatacommunities.org/id/metropolitan-district-council/wolverhampton","20/09/2017","Finance","VIRGIN TRAINS","4.90","-","Public Transport","4112"
"Wolverhampton City Council","http://opendatacommunities.org/id/metropolitan-district-council/wolverhampton","21/09/2017","Finance","TRAVELODGE","306.50","-","Accommodation Costs","7011"
"Wolverhampton City Council","http://opendatacommunities.org/id/metropolitan-district-council/wolverhampton","21/09/2017","Finance","VIRGIN TRAINS","-57.00","-","Public Transport","4112"
"Wolverhampton City Council","http://opendatacommunities.org/id/metropolitan-district-council/wolverhampton","22/09/2017","Finance","LONDON MIDLAND","104.00","-","Public Transport","4112"
"Wolverhampton City Council","http://opendatacommunities.org/id/metropolitan-district-council/wolverhampton","22/09/2017","Finance","LONDON MIDLAND","13.40","-","Public Transport","4112"
"Wolverhampton City Council","http://opendatacommunities.org/id/metropolitan-district-council/wolverhampton","22/09/2017","Finance","VIRGIN TRAINS","162.00","-","Public Transport","4112"
"Wolverhampton City Council","http://opendatacommunities.org/id/metropolitan-district-council/wolverhampton","25/09/2017","Finance","PREMIER INN","171.50","-","Accommodation Costs","7011"
"Wolverhampton City Council","http://opendatacommunities.org/id/metropolitan-district-council/wolverhampton","25/09/2017","finance","WEST COAST TRAINS","12.00","-","Car Parking","4112"
"Wolverhampton City Council","http://opendatacommunities.org/id/metropolitan-district-council/wolverhampton","25/09/2017","finance","LUL TICKET MACHINE","9.80","-","Public Transport","4112"
"Wolverhampton City Council","http://opendatacommunities.org/id/metropolitan-district-council/wolverhampton","27/09/2017","Finance","LONDON MIDLAND","9.00","-","Public Transport","4112"
"Wolverhampton City Council","http://opendatacommunities.org/id/metropolitan-district-council/wolverhampton","27/09/2017","Finance","VIRGIN TRAINS","23.00","-","Public Transport","4112"
"Wolverhampton City Council","http://opendatacommunities.org/id/metropolitan-district-council/wolverhampton","27/09/2017","Finance","VIRGIN TRAINS","-40.00","-","Public Transport","4112"
"Wolverhampton City Council","http://opendatacommunities.org/id/metropolitan-district-council/wolverhampton","02/10/2017","finance","VIRGIN TRAINS","176.00","-","Public Transport","4112"
"Wolverhampton City Council","http://opendatacommunities.org/id/metropolitan-district-council/wolverhampton","03/10/2017","Finance","DAYS Hotel","100.00","-","Accommodation Costs","7011"
"Wolverhampton City Council","http://opendatacommunities.org/id/metropolitan-district-council/wolverhampton","03/10/2017","Finance","LONDON MIDLAND","-94.00","-","Public Transport","4112"
"Wolverhampton City Council","http://opendatacommunities.org/id/metropolitan-district-council/wolverhampton","03/10/2017","Finance","VIRGIN TRAINS","182.00","-","Public Transport","4112"
"Wolverhampton City Council","http://opendatacommunities.org/id/metropolitan-district-council/wolverhampton","03/10/2017","Finance","VIRGIN TRAINS","181.60","-","Public Transport","4112"
"Wolverhampton City Council","http://opendatacommunities.org/id/metropolitan-district-council/wolverhampton","03/10/2017","Finance","VIRGIN TRAINS","115.80","-","Public Transport","4112"
"Wolverhampton City Council","http://opendatacommunities.org/id/metropolitan-district-council/wolverhampton","03/10/2017","Finance","VIRGIN TRAINS","182.00","-","Public Transport","4112"
"Wolverhampton City Council","http://opendatacommunities.org/id/metropolitan-district-council/wolverhampton","03/10/2017","Finance","VIRGIN TRAINS","267.40","-","Public Transport","4112"
"Wolverhampton City Council","http://opendatacommunities.org/id/metropolitan-district-council/wolverhampton","09/10/2017","Finance","CROSS COUNTRY TRAINS","25.60","-","Public Transport","4112"
"Wolverhampton City Council","http://opendatacommunities.org/id/metropolitan-district-council/wolverhampton","09/10/2017","Finance","LONDON MIDLAND","78.50","-","Public Transport","4112"
"Wolverhampton City Council","http://opendatacommunities.org/id/metropolitan-district-council/wolverhampton","09/10/2017","Finance","TRAINLINE","187.17","-","Public Transport","4112"
"Wolverhampton City Council","http://opendatacommunities.org/id/metropolitan-district-council/wolverhampton","09/10/2017","Finance","TRAINLINE","187.17","-","Public Transport","4112"
"Wolverhampton City Council","http://opendatacommunities.org/id/metropolitan-district-council/wolverhampton","09/10/2017","Finance","VIRGIN TRAINS","162.00","-","Public Transport","4112"
"Wolverhampton City Council","http://opendatacommunities.org/id/metropolitan-district-council/wolverhampton","09/10/2017","Finance","VIRGIN TRAINS","54.10","-","Public Transport","4112"
"Wolverhampton City Council","http://opendatacommunities.org/id/metropolitan-district-council/wolverhampton","10/10/2017","Finance","CROSS COUNTRY TRAINS","56.80","-","Public Transport","4112"
"Wolverhampton City Council","http://opendatacommunities.org/id/metropolitan-district-council/wolverhampton","10/10/2017","Finance","VIRGIN TRAINS","43.55","-","Public Transport","4112"
"Wolverhampton City Council","http://opendatacommunities.org/id/metropolitan-district-council/wolverhampton","10/10/2017","Finance","VIRGIN TRAINS","148.00","-","Public Transport","4112"
"Wolverhampton City Council","http://opendatacommunities.org/id/metropolitan-district-council/wolverhampton","10/10/2017","Finance","VIRGIN TRAINS","182.00","-","Public Transport","4112"
"Wolverhampton City Council","http://opendatacommunities.org/id/metropolitan-district-council/wolverhampton","10/10/2017","Finance","VIRGIN TRAINS","185.00","-","Public Transport","4112"
"Wolverhampton City Council","http://opendatacommunities.org/id/metropolitan-district-council/wolverhampton","11/10/2017","Finance","HOTELS.COM","846.04","-","Accommodation Costs","7011"
"Wolverhampton City Council","http://opendatacommunities.org/id/metropolitan-district-council/wolverhampton","11/10/2017","Finance","EVENT FURNITURE","-50.00","-","Equipment Purchase","5046"
"Wolverhampton City Council","http://opendatacommunities.org/id/metropolitan-district-council/wolverhampton","11/10/2017","Finance","Iceland","5.14","-","Subsistence","5411"
"Wolverhampton City Council","http://opendatacommunities.org/id/metropolitan-district-council/wolverhampton","12/10/2017","Finance","CROSS COUNTRY TRAINS","25.60","-","Public Transport","4112"
"Wolverhampton City Council","http://opendatacommunities.org/id/metropolitan-district-council/wolverhampton","12/10/2017","Finance","CROSS COUNTRY TRAINS","75.00","-","Public Transport","4112"
"Wolverhampton City Council","http://opendatacommunities.org/id/metropolitan-district-council/wolverhampton","12/10/2017","Finance","CROSS COUNTRY TRAINS","56.80","-","Public Transport","4112"
"Wolverhampton City Council","http://opendatacommunities.org/id/metropolitan-district-council/wolverhampton","12/10/2017","Finance","VIRGIN TRAINS","80.00","-","Public Transport","4112"
"Wolverhampton City Council","http://opendatacommunities.org/id/metropolitan-district-council/wolverhampton","12/10/2017","Finance","VIRGIN TRAINS","-43.50","-","Public Transport","4112"
"Wolverhampton City Council","http://opendatacommunities.org/id/metropolitan-district-council/wolverhampton","13/10/2017","Finance","TRAINLINE","187.17","-","Public Transport","4112"
"Wolverhampton City Council","http://opendatacommunities.org/id/metropolitan-district-council/wolverhampton","16/10/2017","Finance","TRAINLINE","56.87","-","Public Transport","4112"
"Wolverhampton City Council","http://opendatacommunities.org/id/metropolitan-district-council/wolverhampton","16/10/2017","Finance","VIRGIN TRAINS","128.00","-","Public Transport","4112"
"Wolverhampton City Council","http://opendatacommunities.org/id/metropolitan-district-council/wolverhampton","16/10/2017","Finance","VIRGIN TRAINS","154.00","-","Public Transport","4112"
"Wolverhampton City Council","http://opendatacommunities.org/id/metropolitan-district-council/wolverhampton","16/10/2017","Finance","GREGGS","13.70","-","Subsistence","5812"
"Wolverhampton City Council","http://opendatacommunities.org/id/metropolitan-district-council/wolverhampton","17/10/2017","Finance","AMERICANO","-81.00","-","Public Transport","5812"
"Wolverhampton City Council","http://opendatacommunities.org/id/metropolitan-district-council/wolverhampton","17/10/2017","Finance","AMERICANO","27.80","-","Public Transport","5812"
"Wolverhampton City Council","http://opendatacommunities.org/id/metropolitan-district-council/wolverhampton","20/10/2017","Finance","British Airways","244.00","-","Public Transport","4511"
"Wolverhampton City Council","http://opendatacommunities.org/id/metropolitan-district-council/wolverhampton","20/10/2017","Finance","VIRGIN TRAINS","95.60","-","Public Transport","4112"
"Wolverhampton City Council","http://opendatacommunities.org/id/metropolitan-district-council/wolverhampton","23/10/2017","Finance","LONDON MIDLAND","8.00","-","Public Transport","4112"
"Wolverhampton City Council","http://opendatacommunities.org/id/metropolitan-district-council/wolverhampton","23/10/2017","Finance","VIRGIN TRAINS","2341.40","-","Public Transport","4112"
"Wolverhampton City Council","http://opendatacommunities.org/id/metropolitan-district-council/wolverhampton","23/10/2017","Finance","VIRGIN TRAINS","85.00","-","Public Transport","4112"
"Wolverhampton City Council","http://opendatacommunities.org/id/metropolitan-district-council/wolverhampton","23/10/2017","Finance","VIRGIN TRAINS","182.00","-","Public Transport","4112"
"Wolverhampton City Council","http://opendatacommunities.org/id/metropolitan-district-council/wolverhampton","23/10/2017","Finance","VIRGIN TRAINS","162.00","-","Public Transport","4112"
"Wolverhampton City Council","http://opendatacommunities.org/id/metropolitan-district-council/wolverhampton","24/10/2017","Finance","FTPE","136.40","-","Public Transport","4112"
"Wolverhampton City Council","http://opendatacommunities.org/id/metropolitan-district-council/wolverhampton","24/10/2017","Finance","LONDON MIDLAND","221.00","-","Public Transport","4112"
"Wolverhampton City Council","http://opendatacommunities.org/id/metropolitan-district-council/wolverhampton","24/10/2017","Finance","VIRGIN TRAINS","11.00","-","Public Transport","4112"
"Wolverhampton City Council","http://opendatacommunities.org/id/metropolitan-district-council/wolverhampton","25/10/2017","Finance","British Airways","1189.74","-","Public Transport","4511"
"Wolverhampton City Council","http://opendatacommunities.org/id/metropolitan-district-council/wolverhampton","25/10/2017","Finance","British Airways","2210.47","-","Public Transport","4511"
"Wolverhampton City Council","http://opendatacommunities.org/id/metropolitan-district-council/wolverhampton","26/10/2017","Finance","PREMIER INN","702.50","-","Accommodation Costs","7011"
"Wolverhampton City Council","http://opendatacommunities.org/id/metropolitan-district-council/wolverhampton","26/10/2017","Finance","LONDON MIDLAND","57.00","-","Public Transport","4112"
"Wolverhampton City Council","http://opendatacommunities.org/id/metropolitan-district-council/wolverhampton","26/10/2017","Finance","VIRGIN TRAINS","99.00","-","Public Transport","4112"
"Wolverhampton City Council","http://opendatacommunities.org/id/metropolitan-district-council/wolverhampton","26/10/2017","Finance","VIRGIN TRAINS","35.00","-","Public Transport","4112"
"Wolverhampton City Council","http://opendatacommunities.org/id/metropolitan-district-council/wolverhampton","30/10/2017","Finance","British Airways","146.70","-","Public Transport","4511"
"Wolverhampton City Council","http://opendatacommunities.org/id/metropolitan-district-council/wolverhampton","08/11/2017","Finance","CROSS COUNTRY TRAINS","94.00","-","Public Transport","4112"
"Wolverhampton City Council","http://opendatacommunities.org/id/metropolitan-district-council/wolverhampton","08/11/2017","Finance","CROSS COUNTRY TRAINS","219.00","-","Public Transport","4112"
"Wolverhampton City Council","http://opendatacommunities.org/id/metropolitan-district-council/wolverhampton","08/11/2017","Finance","LONDON MIDLAND","13.40","-","Public Transport","4112"
"Wolverhampton City Council","http://opendatacommunities.org/id/metropolitan-district-council/wolverhampton","10/11/2017","Finance","VIRGIN TRAINS","-5.50","-","Public Transport","4112"
"Wolverhampton City Council","http://opendatacommunities.org/id/metropolitan-district-council/wolverhampton","10/11/2017","Finance","VIRGIN TRAINS","102.55","-","Public Transport","4112"
"Wolverhampton City Council","http://opendatacommunities.org/id/metropolitan-district-council/wolverhampton","10/11/2017","Finance","VIRGIN TRAINS","165.00","-","Public Transport","4112"
"Wolverhampton City Council","http://opendatacommunities.org/id/metropolitan-district-council/wolverhampton","14/11/2017","Finance","CROSS COUNTRY TRAINS","14.40","-","Public Transport","4112"
"Wolverhampton City Council","http://opendatacommunities.org/id/metropolitan-district-council/wolverhampton","14/11/2017","Finance","EAST MIDLANDS TRAINS","70.50","-","Public Transport","4112"
"Wolverhampton City Council","http://opendatacommunities.org/id/metropolitan-district-council/wolverhampton","14/11/2017","Finance","VIRGIN TRAINS","11.00","-","Public Transport","4112"
"Wolverhampton City Council","http://opendatacommunities.org/id/metropolitan-district-council/wolverhampton","14/11/2017","Finance","VIRGIN TRAINS","26.70","-","Public Transport","4112"
"Wolverhampton City Council","http://opendatacommunities.org/id/metropolitan-district-council/wolverhampton","14/11/2017","Finance","VIRGIN TRAINS","40.00","-","Public Transport","4112"
"Wolverhampton City Council","http://opendatacommunities.org/id/metropolitan-district-council/wolverhampton","14/11/2017","Finance","VIRGIN TRAINS","67.55","-","Public Transport","4112"
"Wolverhampton City Council","http://opendatacommunities.org/id/metropolitan-district-council/wolverhampton","14/11/2017","Finance","VIRGIN TRAINS","84.55","-","Public Transport","4112"
"Wolverhampton City Council","http://opendatacommunities.org/id/metropolitan-district-council/wolverhampton","14/11/2017","Finance","VIRGIN TRAINS","91.00","-","Public Transport","4112"
"Wolverhampton City Council","http://opendatacommunities.org/id/metropolitan-district-council/wolverhampton","14/11/2017","Finance","VIRGIN TRAINS","127.00","-","Public Transport","4112"
"Wolverhampton City Council","http://opendatacommunities.org/id/metropolitan-district-council/wolverhampton","14/11/2017","Finance","VIRGIN TRAINS","162.00","-","Public Transport","4112"
"Wolverhampton City Council","http://opendatacommunities.org/id/metropolitan-district-council/wolverhampton","14/11/2017","Finance","VIRGIN TRAINS","200.00","-","Public Transport","4112"
"Wolverhampton City Council","http://opendatacommunities.org/id/metropolitan-district-council/wolverhampton","16/11/2017","Finance","VIRGIN TRAINS","176.00","-","Public Transport","4112"
"Wolverhampton City Council","http://opendatacommunities.org/id/metropolitan-district-council/wolverhampton","20/11/2017","Finance","HOTELS.COM","279.56","-","Accommodation Costs","7011"
"Wolverhampton City Council","http://opendatacommunities.org/id/metropolitan-district-council/wolverhampton","20/11/2017","Finance","VIRGIN TRAINS","35.00","-","Public Transport","4112"
"Wolverhampton City Council","http://opendatacommunities.org/id/metropolitan-district-council/wolverhampton","20/11/2017","Finance","VIRGIN TRAINS","86.00","-","Public Transport","4112"
"Wolverhampton City Council","http://opendatacommunities.org/id/metropolitan-district-council/wolverhampton","20/11/2017","Finance","VIRGIN TRAINS","91.00","-","Public Transport","4112"
"Wolverhampton City Council","http://opendatacommunities.org/id/metropolitan-district-council/wolverhampton","20/11/2017","Finance","VIRGIN TRAINS","108.00","-","Public Transport","4112"
"Wolverhampton City Council","http://opendatacommunities.org/id/metropolitan-district-council/wolverhampton","20/11/2017","Finance","VIRGIN TRAINS","216.00","-","Public Transport","4112"
"Wolverhampton City Council","http://opendatacommunities.org/id/metropolitan-district-council/wolverhampton","21/11/2017","Finance","HOTELS.COM","154.77","-","Accommodation Costs","7011"
"Wolverhampton City Council","http://opendatacommunities.org/id/metropolitan-district-council/wolverhampton","21/11/2017","Finance","HOTELS.COM","251.14","-","Accommodation Costs","7011"
"Wolverhampton City Council","http://opendatacommunities.org/id/metropolitan-district-council/wolverhampton","21/11/2017","Finance","CROSS COUNTRY TRAINS","411.00","-","Public Transport","4112"
"Wolverhampton City Council","http://opendatacommunities.org/id/metropolitan-district-council/wolverhampton","22/11/2017","Finance","CROSS COUNTRY TRAINS","131.30","-","Public Transport","4112"
"Wolverhampton City Council","http://opendatacommunities.org/id/metropolitan-district-council/wolverhampton","23/11/2017","Finance","VIRGIN TRAINS","85.90","-","Public Transport","4112"
"Wolverhampton City Council","http://opendatacommunities.org/id/metropolitan-district-council/wolverhampton","24/11/2017","Finance","LONDON MIDLAND","8.40","-","Public Transport","4112"
"Wolverhampton City Council","http://opendatacommunities.org/id/metropolitan-district-council/wolverhampton","28/11/2017","Finance","PREMIER INN","306.00","-","Accommodation Costs","7011"
"Wolverhampton City Council","http://opendatacommunities.org/id/metropolitan-district-council/wolverhampton","28/11/2017","Finance","CROSS COUNTRY TRAINS","38.80","-","Public Transport","4112"
"Wolverhampton City Council","http://opendatacommunities.org/id/metropolitan-district-council/wolverhampton","28/11/2017","Finance","CROSS COUNTRY TRAINS","43.20","-","Public Transport","4112"
"Wolverhampton City Council","http://opendatacommunities.org/id/metropolitan-district-council/wolverhampton","28/11/2017","Finance","CROSS COUNTRY TRAINS","56.80","-","Public Transport","4112"
"Wolverhampton City Council","http://opendatacommunities.org/id/metropolitan-district-council/wolverhampton","28/11/2017","Finance","CROSS COUNTRY TRAINS","205.80","-","Public Transport","4112"
"Wolverhampton City Council","http://opendatacommunities.org/id/metropolitan-district-council/wolverhampton","28/11/2017","Finance","CROSS COUNTRY TRAINS","1049.50","-","Public Transport","4112"
"Wolverhampton City Council","http://opendatacommunities.org/id/metropolitan-district-council/wolverhampton","28/11/2017","Finance","LONDON MIDLAND","106.00","-","Public Transport","4112"
"Wolverhampton City Council","http://opendatacommunities.org/id/metropolitan-district-council/wolverhampton","28/11/2017","Finance","VIRGIN TRAINS","283.55","-","Public Transport","4112"
"Wolverhampton City Council","http://opendatacommunities.org/id/metropolitan-district-council/wolverhampton","01/12/2017","Finance","VIRGIN TRAINS","118.55","-","Public Transport","4112"
"Wolverhampton City Council","http://opendatacommunities.org/id/metropolitan-district-council/wolverhampton","04/12/2017","Finance","FTPE","136.40","-","Public Transport","4112"
"Wolverhampton City Council","http://opendatacommunities.org/id/metropolitan-district-council/wolverhampton","04/12/2017","Finance","ICELAND","5.94","-","Subsistence","5411"
"Wolverhampton City Council","http://opendatacommunities.org/id/metropolitan-district-council/wolverhampton","05/12/2017","Finance","SW RAILWAY","51.70","-","Public Transport","4511"
"Wolverhampton City Council","http://opendatacommunities.org/id/metropolitan-district-council/wolverhampton","05/12/2017","Finance","VIRGIN TRAINS","159.70","-","Public Transport","4112"
"Wolverhampton City Council","http://opendatacommunities.org/id/metropolitan-district-council/wolverhampton","13/12/2017","Finance","CROSS COUNTRY TRAINS","180.60","-","Public Transport","4112"
"Wolverhampton City Council","http://opendatacommunities.org/id/metropolitan-district-council/wolverhampton","13/12/2017","Finance","VIRGIN TRAINS","-41.70","-","Public Transport","4112"
"Wolverhampton City Council","http://opendatacommunities.org/id/metropolitan-district-council/wolverhampton","15/12/2017","Finance","VIRGIN TRAINS","145.00","-","Public Transport","4112"
"Wolverhampton City Council","http://opendatacommunities.org/id/metropolitan-district-council/wolverhampton","21/12/2017","Finance","SCOOTER SOFTWARE MADISON","23.11","-","Computing - Main Agreements","5045"
"Wolverhampton City Council","http://opendatacommunities.org/id/metropolitan-district-council/wolverhampton","29/12/2017","Finance","CLAYTON HOTELS","83.10","-","Accommodation","7011"
"Wolverhampton City Council","http://opendatacommunities.org/id/metropolitan-district-council/wolverhampton","29/12/2017","Finance","TRAINLINE","74.97","-","Public Transport","4112"
"Wolverhampton City Council","http://opendatacommunities.org/id/metropolitan-district-council/wolverhampton","03/04/2017","Governance","GREGGS","12.00","-","Subsistence","5812"
"Wolverhampton City Council","http://opendatacommunities.org/id/metropolitan-district-council/wolverhampton","03/04/2017","Governance","ICELAND","6.09","-","Subsistence","5411"
"Wolverhampton City Council","http://opendatacommunities.org/id/metropolitan-district-council/wolverhampton","06/04/2017","Governance","GREGGS","25.55","-","Subsistence","5812"
"Wolverhampton City Council","http://opendatacommunities.org/id/metropolitan-district-council/wolverhampton","06/04/2017","Governance","ICELAND","2.75","-","Subsistence","5411"
"Wolverhampton City Council","http://opendatacommunities.org/id/metropolitan-district-council/wolverhampton","06/04/2017","Governance","RYMAN","4.99","-","Subsistence","5943"
"Wolverhampton City Council","http://opendatacommunities.org/id/metropolitan-district-council/wolverhampton","06/04/2017","Governance","SAINSBURYS","14.95","-","Subsistence","5411"
"Wolverhampton City Council","http://opendatacommunities.org/id/metropolitan-district-council/wolverhampton","10/04/2017","Governance","ICELAND","6.04","-","Subsistence","5411"
"Wolverhampton City Council","http://opendatacommunities.org/id/metropolitan-district-council/wolverhampton","12/04/2017","Governance","POUNDWORLD","2.05","-","Subsistence","5310"
"Wolverhampton City Council","http://opendatacommunities.org/id/metropolitan-district-council/wolverhampton","18/04/2017","Governance","ICELAND","6.04","-","Subsistence","5411"
"Wolverhampton City Council","http://opendatacommunities.org/id/metropolitan-district-council/wolverhampton","19/04/2017","Governance","ICELAND","2.00","-","Subsistence","5411"
"Wolverhampton City Council","http://opendatacommunities.org/id/metropolitan-district-council/wolverhampton","19/04/2017","Governance","ICELAND","17.90","-","Subsistence","5411"
"Wolverhampton City Council","http://opendatacommunities.org/id/metropolitan-district-council/wolverhampton","20/04/2017","Governance","GREGGS","62.60","-","Subsistence","5812"
"Wolverhampton City Council","http://opendatacommunities.org/id/metropolitan-district-council/wolverhampton","20/04/2017","Governance","POUNDWORLD","5.00","-","Subsistence","5310"
"Wolverhampton City Council","http://opendatacommunities.org/id/metropolitan-district-council/wolverhampton","24/04/2017","Governance","ICELAND","6.09","-","Subsistence","5411"
"Wolverhampton City Council","http://opendatacommunities.org/id/metropolitan-district-council/wolverhampton","25/04/2017","Governance","ICELAND","12.47","-","Subsistence","5411"
"Wolverhampton City Council","http://opendatacommunities.org/id/metropolitan-district-council/wolverhampton","27/04/2017","Governance","AMAZON","17.68","-","Stationary","5942"
"Wolverhampton City Council","http://opendatacommunities.org/id/metropolitan-district-council/wolverhampton","28/04/2017","Governance","GREGGS","49.50","-","Subsistence","5812"
"Wolverhampton City Council","http://opendatacommunities.org/id/metropolitan-district-council/wolverhampton","01/05/2017","Governance","AMAZON","49.35","-","Subsistence","5942"
"Wolverhampton City Council","http://opendatacommunities.org/id/metropolitan-district-council/wolverhampton","01/05/2017","Governance","GREGGS","37.90","-","Subsistence","5812"
"Wolverhampton City Council","http://opendatacommunities.org/id/metropolitan-district-council/wolverhampton","05/06/2017","Governance","GREGGS","7.35","-","Subsistence","5812"
"Wolverhampton City Council","http://opendatacommunities.org/id/metropolitan-district-council/wolverhampton","05/06/2017","Governance","GREGGS","2.70","-","Subsistence","5812"
"Wolverhampton City Council","http://opendatacommunities.org/id/metropolitan-district-council/wolverhampton","05/06/2017","Governance","ICELAND","6.09","-","Subsistence","5411"
"Wolverhampton City Council","http://opendatacommunities.org/id/metropolitan-district-council/wolverhampton","05/06/2017","Governance","POUNDWORLD","3.00","-","Subsistence","5310"
"Wolverhampton City Council","http://opendatacommunities.org/id/metropolitan-district-council/wolverhampton","07/06/2017","Governance","GREGGS","5.40","-","Subsistence","5812"
"Wolverhampton City Council","http://opendatacommunities.org/id/metropolitan-district-council/wolverhampton","07/06/2017","Governance","ICELAND","6.49","-","Subsistence","5411"
"Wolverhampton City Council","http://opendatacommunities.org/id/metropolitan-district-council/wolverhampton","07/06/2017","Governance","ICELAND","2.44","-","Subsistence","5411"
"Wolverhampton City Council","http://opendatacommunities.org/id/metropolitan-district-council/wolverhampton","07/06/2017","Governance","POUNDWORLD","2.50","-","Subsistence","5310"
"Wolverhampton City Council","http://opendatacommunities.org/id/metropolitan-district-council/wolverhampton","08/06/2017","Governance","GREGGS","50.50","-","Subsistence","5812"
"Wolverhampton City Council","http://opendatacommunities.org/id/metropolitan-district-council/wolverhampton","08/06/2017","Governance","POUNDWORLD","0.84","-","Subsistence","5310"
"Wolverhampton City Council","http://opendatacommunities.org/id/metropolitan-district-council/wolverhampton","10/06/2017","Governance","ICELAND","3.65","-","Subsistence","5411"
"Wolverhampton City Council","http://opendatacommunities.org/id/metropolitan-district-council/wolverhampton","12/06/2017","Governance","VIRGIN TRAINS","-10.00","-","Public transport","4112"
"Wolverhampton City Council","http://opendatacommunities.org/id/metropolitan-district-council/wolverhampton","12/06/2017","Governance","GREGGS","6.00","-","Subsistence","5812"
"Wolverhampton City Council","http://opendatacommunities.org/id/metropolitan-district-council/wolverhampton","12/06/2017","Governance","ICELAND","6.09","-","Subsistence","5411"
"Wolverhampton City Council","http://opendatacommunities.org/id/metropolitan-district-council/wolverhampton","12/06/2017","Governance","ICELAND","3.15","-","Subsistence","5411"
"Wolverhampton City Council","http://opendatacommunities.org/id/metropolitan-district-council/wolverhampton","13/06/2017","Governance","RYMAN","39.97","-","Stationary","5943"
"Wolverhampton City Council","http://opendatacommunities.org/id/metropolitan-district-council/wolverhampton","13/06/2017","Governance","POUNDWORLD","0.84","-","Subsistence","5310"
"Wolverhampton City Council","http://opendatacommunities.org/id/metropolitan-district-council/wolverhampton","14/06/2017","Governance","GROUPON","32.00","-","Equipment Purchase","8299"
"Wolverhampton City Council","http://opendatacommunities.org/id/metropolitan-district-council/wolverhampton","14/06/2017","Governance","ICELAND","5.94","-","Subsistence","5411"
"Wolverhampton City Council","http://opendatacommunities.org/id/metropolitan-district-council/wolverhampton","21/06/2017","Governance","PREMIER INN","181.89","-","Accommodation costs","7011"
"Wolverhampton City Council","http://opendatacommunities.org/id/metropolitan-district-council/wolverhampton","21/06/2017","Governance","CFAUK","240.00","-","Training Expenses","8299"
"Wolverhampton City Council","http://opendatacommunities.org/id/metropolitan-district-council/wolverhampton","22/06/2017","Governance","WEST COAST TRAINS","358.00","-","Public transport","4112"
"Wolverhampton City Council","http://opendatacommunities.org/id/metropolitan-district-council/wolverhampton","22/06/2017","Governance","GREGGS","9.45","-","Subsistence","5812"
"Wolverhampton City Council","http://opendatacommunities.org/id/metropolitan-district-council/wolverhampton","22/06/2017","Governance","ICELAND","6.40","-","Subsistence","5411"
"Wolverhampton City Council","http://opendatacommunities.org/id/metropolitan-district-council/wolverhampton","26/06/2017","Governance","WEST COAST TRAINS","182.00","-","Public transport","4112"
"Wolverhampton City Council","http://opendatacommunities.org/id/metropolitan-district-council/wolverhampton","26/06/2017","Governance","GREGGS","38.10","-","Subsistence","5812"
"Wolverhampton City Council","http://opendatacommunities.org/id/metropolitan-district-council/wolverhampton","26/06/2017","Governance","ICELAND","2.34","-","Subsistence","5411"
"Wolverhampton City Council","http://opendatacommunities.org/id/metropolitan-district-council/wolverhampton","26/06/2017","Governance","POUNDWORLD","1.67","-","Subsistence","5310"
"Wolverhampton City Council","http://opendatacommunities.org/id/metropolitan-district-council/wolverhampton","27/06/2017","Governance","HOLIDAY INN","151.00","-","Accommodation costs","7011"
"Wolverhampton City Council","http://opendatacommunities.org/id/metropolitan-district-council/wolverhampton","27/06/2017","Governance","TRAVELODGE","539.17","-","Accommodation costs","7011"
"Wolverhampton City Council","http://opendatacommunities.org/id/metropolitan-district-council/wolverhampton","27/06/2017","Governance","VIRGIN TRAINS","102.00","-","Public transport","4112"
"Wolverhampton City Council","http://opendatacommunities.org/id/metropolitan-district-council/wolverhampton","27/06/2017","Governance","RYMAN","7.49","-","Stationary","5943"
"Wolverhampton City Council","http://opendatacommunities.org/id/metropolitan-district-council/wolverhampton","27/06/2017","Governance","GREGGS","25.70","-","Subsistence","5812"
"Wolverhampton City Council","http://opendatacommunities.org/id/metropolitan-district-council/wolverhampton","27/06/2017","Governance","ICELAND","6.09","-","Subsistence","5411"
"Wolverhampton City Council","http://opendatacommunities.org/id/metropolitan-district-council/wolverhampton","27/06/2017","Governance","ICELAND","1.55","-","Subsistence","5411"
"Wolverhampton City Council","http://opendatacommunities.org/id/metropolitan-district-council/wolverhampton","29/06/2017","Governance","ICELAND","3.55","-","Subsistence","5411"
"Wolverhampton City Council","http://opendatacommunities.org/id/metropolitan-district-council/wolverhampton","29/06/2017","Governance","ICELAND","1.60","-","Subsistence","5411"
"Wolverhampton City Council","http://opendatacommunities.org/id/metropolitan-district-council/wolverhampton","29/06/2017","Governance","POUNDWORLD","4.00","-","Subsistence","5310"
"Wolverhampton City Council","http://opendatacommunities.org/id/metropolitan-district-council/wolverhampton","03/07/2017","Governance","GREGGS","5.45","-","Subsistence","5812"
"Wolverhampton City Council","http://opendatacommunities.org/id/metropolitan-district-council/wolverhampton","03/07/2017","Governance","ICELAND","6.09","-","Subsistence","5411"
"Wolverhampton City Council","http://opendatacommunities.org/id/metropolitan-district-council/wolverhampton","04/07/2017","Governance","GREGGS","4.50","-","Subsistence","5812"
"Wolverhampton City Council","http://opendatacommunities.org/id/metropolitan-district-council/wolverhampton","04/07/2017","Governance","ICELAND","4.74","-","Subsistence","5411"
"Wolverhampton City Council","http://opendatacommunities.org/id/metropolitan-district-council/wolverhampton","07/07/2017","Governance","AMAZON","10.75","-","Equipment Purchase","5942"
"Wolverhampton City Council","http://opendatacommunities.org/id/metropolitan-district-council/wolverhampton","10/07/2017","Governance","TIMPSON LTD WOLVERHAMPTON","12.00","-","Equipment Purchase","7251"
"Wolverhampton City Council","http://opendatacommunities.org/id/metropolitan-district-council/wolverhampton","10/07/2017","Governance","ICELAND","6.09","-","Subsistence","5411"
"Wolverhampton City Council","http://opendatacommunities.org/id/metropolitan-district-council/wolverhampton","13/07/2017","Governance","GREGGS","10.75","-","Subsistence","5812"
"Wolverhampton City Council","http://opendatacommunities.org/id/metropolitan-district-council/wolverhampton","13/07/2017","Governance","ICELAND","3.09","-","Subsistence","5411"
"Wolverhampton City Council","http://opendatacommunities.org/id/metropolitan-district-council/wolverhampton","14/07/2017","Governance","AMAZON","16.58","-","Equipment Purchase","5942"
"Wolverhampton City Council","http://opendatacommunities.org/id/metropolitan-district-council/wolverhampton","17/07/2017","Governance","ICELAND","6.09","-","Subsistence","5411"
"Wolverhampton City Council","http://opendatacommunities.org/id/metropolitan-district-council/wolverhampton","18/07/2017","Governance","CUMMINGS BROTHER LOCK","12.00","-","Equipment Purchase","5072"
"Wolverhampton City Council","http://opendatacommunities.org/id/metropolitan-district-council/wolverhampton","19/07/2017","Governance","AMAZON","14.16","-","Equipment Purchase","5942"
"Wolverhampton City Council","http://opendatacommunities.org/id/metropolitan-district-council/wolverhampton","20/07/2017","Governance","GREGGS","9.45","-","Subsistence","5812"
"Wolverhampton City Council","http://opendatacommunities.org/id/metropolitan-district-council/wolverhampton","20/07/2017","Governance","ICELAND","4.60","-","Subsistence","5411"
"Wolverhampton City Council","http://opendatacommunities.org/id/metropolitan-district-council/wolverhampton","20/07/2017","Governance","ICELAND","2.05","-","Subsistence","5411"
"Wolverhampton City Council","http://opendatacommunities.org/id/metropolitan-district-council/wolverhampton","31/07/2017","Governance","AMAZON","3.96","-","Equipment Purchase","5942"
"Wolverhampton City Council","http://opendatacommunities.org/id/metropolitan-district-council/wolverhampton","31/07/2017","Governance","CROSS COUNTRY TRAINS","56.80","-","Public transport","4112"
"Wolverhampton City Council","http://opendatacommunities.org/id/metropolitan-district-council/wolverhampton","31/07/2017","Governance","VIRGIN TRAINS","51.00","-","Public transport","4112"
"Wolverhampton City Council","http://opendatacommunities.org/id/metropolitan-district-council/wolverhampton","31/07/2017","Governance","ICELAND","6.09","-","Subsistence","5411"
"Wolverhampton City Council","http://opendatacommunities.org/id/metropolitan-district-council/wolverhampton","31/07/2017","Governance","CFAUK","255.00","-","Training Expenses","8299"
"Wolverhampton City Council","http://opendatacommunities.org/id/metropolitan-district-council/wolverhampton","01/08/2017","Governance","CROSS COUNTRY TRAINS","32.60","-","Public transport","4112"
"Wolverhampton City Council","http://opendatacommunities.org/id/metropolitan-district-council/wolverhampton","01/08/2017","Governance","CROSS COUNTRY TRAINS","36.10","-","Public transport","4112"
"Wolverhampton City Council","http://opendatacommunities.org/id/metropolitan-district-council/wolverhampton","01/08/2017","Governance","VIRGIN TRAINS","176.00","-","Public transport","4112"
"Wolverhampton City Council","http://opendatacommunities.org/id/metropolitan-district-council/wolverhampton","02/08/2017","Governance","CROSS COUNTRY TRAINS","16.80","-","Public transport","4112"
"Wolverhampton City Council","http://opendatacommunities.org/id/metropolitan-district-council/wolverhampton","02/08/2017","Governance","CROSS COUNTRY TRAINS","41.00","-","Public transport","4112"
"Wolverhampton City Council","http://opendatacommunities.org/id/metropolitan-district-council/wolverhampton","02/08/2017","Governance","VIRGIN TRAINS","2.05","-","Public transport","4112"
"Wolverhampton City Council","http://opendatacommunities.org/id/metropolitan-district-council/wolverhampton","01/09/2017","Governance","PREMIER INN","172.00","-","Accommodation Costs","7011"
"Wolverhampton City Council","http://opendatacommunities.org/id/metropolitan-district-council/wolverhampton","05/09/2017","Governance","CROSS COUNTRY TRAINS","83.70","-","Public Transport","4112"
"Wolverhampton City Council","http://opendatacommunities.org/id/metropolitan-district-council/wolverhampton","05/09/2017","Governance","GWR WEBSALES SWINDON","95.00","-","Public Transport","4112"
"Wolverhampton City Council","http://opendatacommunities.org/id/metropolitan-district-council/wolverhampton","05/09/2017","Governance","GWR WEBSALES SWINDON","31.90","-","Public Transport","4112"
"Wolverhampton City Council","http://opendatacommunities.org/id/metropolitan-district-council/wolverhampton","05/09/2017","Governance","VIRGIN TRAINS","57.00","-","Public Transport","4112"
"Wolverhampton City Council","http://opendatacommunities.org/id/metropolitan-district-council/wolverhampton","05/09/2017","Governance","VIRGIN TRAINS","72.00","-","Public Transport","4112"
"Wolverhampton City Council","http://opendatacommunities.org/id/metropolitan-district-council/wolverhampton","05/09/2017","Governance","ASDA","8.66","-","Subsistence","5411"
"Wolverhampton City Council","http://opendatacommunities.org/id/metropolitan-district-council/wolverhampton","06/09/2017","Governance","FTPE","40.40","-","Public Transport","4112"
"Wolverhampton City Council","http://opendatacommunities.org/id/metropolitan-district-council/wolverhampton","06/09/2017","Governance","RIVERFORD","25.81","-","Subsistence","5499"
"Wolverhampton City Council","http://opendatacommunities.org/id/metropolitan-district-council/wolverhampton","07/09/2017","Governance","ARGOS","4.99","-","Purchase Equipment","5311"
"Wolverhampton City Council","http://opendatacommunities.org/id/metropolitan-district-council/wolverhampton","12/09/2017","Governance","GROUSE AND ALE HIGH WYCOMBE","180.00","-","Subsistence","5812"
"Wolverhampton City Council","http://opendatacommunities.org/id/metropolitan-district-council/wolverhampton","13/09/2017","Governance","RIVERFORD","25.81","-","Subsistence","5499"
"Wolverhampton City Council","http://opendatacommunities.org/id/metropolitan-district-council/wolverhampton","18/09/2017","Governance","ICELAND","6.14","-","Subsistence","5411"
"Wolverhampton City Council","http://opendatacommunities.org/id/metropolitan-district-council/wolverhampton","19/09/2017","Governance","MAX SPIELMANN LTD","7.00","-","Stationary","5192"
"Wolverhampton City Council","http://opendatacommunities.org/id/metropolitan-district-council/wolverhampton","19/09/2017","Governance","ICELAND","5.60","-","Subsistence","5411"
"Wolverhampton City Council","http://opendatacommunities.org/id/metropolitan-district-council/wolverhampton","20/09/2017","Governance","Curry's online","274.98","-","Purchase Equipment","7251"
"Wolverhampton City Council","http://opendatacommunities.org/id/metropolitan-district-council/wolverhampton","20/09/2017","Governance","RIVERFORD","25.81","-","Subsistence","5499"
"Wolverhampton City Council","http://opendatacommunities.org/id/metropolitan-district-council/wolverhampton","21/09/2017","Governance","SAINSBURYS","78.10","-","Subsistence","5411"
"Wolverhampton City Council","http://opendatacommunities.org/id/metropolitan-district-council/wolverhampton","22/09/2017","Governance","M&S Simply Food","13.00","-","Stationary","5812"
"Wolverhampton City Council","http://opendatacommunities.org/id/metropolitan-district-council/wolverhampton","27/09/2017","Governance","RIVERFORD","30.16","-","Subsistence","5499"
"Wolverhampton City Council","http://opendatacommunities.org/id/metropolitan-district-council/wolverhampton","03/10/2017","Governance","WCT CATERING","10.35","-","Subsistence","5812"
"Wolverhampton City Council","http://opendatacommunities.org/id/metropolitan-district-council/wolverhampton","04/10/2017","Governance","RIVERFORD","29.75","-","Subsistence","5499"
"Wolverhampton City Council","http://opendatacommunities.org/id/metropolitan-district-council/wolverhampton","05/10/2017","Governance","ASDA","99.55","-","Subsistence","5411"
"Wolverhampton City Council","http://opendatacommunities.org/id/metropolitan-district-council/wolverhampton","05/10/2017","Governance","ASDA","-15.00","-","Subsistence","5411"
"Wolverhampton City Council","http://opendatacommunities.org/id/metropolitan-district-council/wolverhampton","08/10/2017","Governance","ICELAND","6.09","-","Subsistence","5411"
"Wolverhampton City Council","http://opendatacommunities.org/id/metropolitan-district-council/wolverhampton","09/10/2017","Governance","CROSS COUNTRY TRAINS","46.80","-","Public Transport","4112"
"Wolverhampton City Council","http://opendatacommunities.org/id/metropolitan-district-council/wolverhampton","09/10/2017","Governance","M&S Simply Food","12.30","-","Subsistence","5812"
"Wolverhampton City Council","http://opendatacommunities.org/id/metropolitan-district-council/wolverhampton","10/10/2017","Governance","POUNDLAND","3.05","-","Equipment Purchase","5310"
"Wolverhampton City Council","http://opendatacommunities.org/id/metropolitan-district-council/wolverhampton","10/10/2017","Governance","POUNDLAND","1.00","-","Equipment Purchase","5310"
"Wolverhampton City Council","http://opendatacommunities.org/id/metropolitan-district-council/wolverhampton","10/10/2017","Governance","OYSTER","20.00","-","Public Transport","4112"
"Wolverhampton City Council","http://opendatacommunities.org/id/metropolitan-district-council/wolverhampton","10/10/2017","Governance","SP VIRO DISPLAY","14.36","-","R&M internal","5044"
"Wolverhampton City Council","http://opendatacommunities.org/id/metropolitan-district-council/wolverhampton","10/10/2017","Governance","SP VIRO DISPLAY","15.95","-","R&M internal","5044"
"Wolverhampton City Council","http://opendatacommunities.org/id/metropolitan-district-council/wolverhampton","11/10/2017","Governance","AMAZON","13.33","-","Stationary","5942"
"Wolverhampton City Council","http://opendatacommunities.org/id/metropolitan-district-council/wolverhampton","11/10/2017","Governance","CATELLANIS WOLVERHAMPTON","61.05","-","Subsistence","5812"
"Wolverhampton City Council","http://opendatacommunities.org/id/metropolitan-district-council/wolverhampton","11/10/2017","Governance","RIVERFORD","29.75","-","Subsistence","5499"
"Wolverhampton City Council","http://opendatacommunities.org/id/metropolitan-district-council/wolverhampton","12/10/2017","Governance","CROSS COUNTRY TRAINS","198.90","-","Public Transport","4112"
"Wolverhampton City Council","http://opendatacommunities.org/id/metropolitan-district-council/wolverhampton","12/10/2017","Governance","CROSS COUNTRY TRAINS","27.90","-","Public Transport","4112"
"Wolverhampton City Council","http://opendatacommunities.org/id/metropolitan-district-council/wolverhampton","12/10/2017","Governance","GREGGS","4.50","-","Subsistence","5812"
"Wolverhampton City Council","http://opendatacommunities.org/id/metropolitan-district-council/wolverhampton","12/10/2017","Governance","ICELAND","1.65","-","Subsistence","5411"
"Wolverhampton City Council","http://opendatacommunities.org/id/metropolitan-district-council/wolverhampton","12/10/2017","Governance","POUNDLAND","2.00","-","Subsistence","5310"
"Wolverhampton City Council","http://opendatacommunities.org/id/metropolitan-district-council/wolverhampton","17/10/2017","Governance","AMAZON","53.94","-","Purchase Equipment","5942"
"Wolverhampton City Council","http://opendatacommunities.org/id/metropolitan-district-council/wolverhampton","17/10/2017","Governance","ICELAND","6.09","-","Subsistence","5411"
"Wolverhampton City Council","http://opendatacommunities.org/id/metropolitan-district-council/wolverhampton","18/10/2017","Governance","ICELAND","3.10","-","Subsistence","5411"
"Wolverhampton City Council","http://opendatacommunities.org/id/metropolitan-district-council/wolverhampton","18/10/2017","Governance","POUNDLAND","1.00","-","Subsistence","5310"
"Wolverhampton City Council","http://opendatacommunities.org/id/metropolitan-district-council/wolverhampton","18/10/2017","Governance","RIVERFORD","29.75","-","Subsistence","5499"
"Wolverhampton City Council","http://opendatacommunities.org/id/metropolitan-district-council/wolverhampton","19/10/2017","Governance","ICELAND","9.14","-","Subsistence","5411"
"Wolverhampton City Council","http://opendatacommunities.org/id/metropolitan-district-council/wolverhampton","20/10/2017","Governance","MILLER AND CARTER","100.00","-","Subsistence","5812"
"Wolverhampton City Council","http://opendatacommunities.org/id/metropolitan-district-council/wolverhampton","23/10/2017","Governance","LUL TICKET MACHINE","4.90","-","Public Transport","4112"
"Wolverhampton City Council","http://opendatacommunities.org/id/metropolitan-district-council/wolverhampton","25/10/2017","Governance","RIVERFORD","29.75","-","Subsistence","5499"
"Wolverhampton City Council","http://opendatacommunities.org/id/metropolitan-district-council/wolverhampton","26/10/2017","Governance","ICELAND","4.74","-","Subsistence","5411"
"Wolverhampton City Council","http://opendatacommunities.org/id/metropolitan-district-council/wolverhampton","26/10/2017","Governance","POUNDLAND","3.00","-","Subsistence","5310"
"Wolverhampton City Council","http://opendatacommunities.org/id/metropolitan-district-council/wolverhampton","27/10/2017","Governance","ICELAND","5.15","-","Subsistence","5411"
"Wolverhampton City Council","http://opendatacommunities.org/id/metropolitan-district-council/wolverhampton","30/10/2017","Governance","ICELAND","6.09","-","Subsistence","5411"
"Wolverhampton City Council","http://opendatacommunities.org/id/metropolitan-district-council/wolverhampton","01/11/2017","Governance","ICELAND","6.20","-","Subsistence","5411"
"Wolverhampton City Council","http://opendatacommunities.org/id/metropolitan-district-council/wolverhampton","01/11/2017","Governance","RIVERFORD","29.75","-","Subsistence","5499"
"Wolverhampton City Council","http://opendatacommunities.org/id/metropolitan-district-council/wolverhampton","02/11/2017","Governance","VIRGIN TRAINS","128.00","-","Public Transport","4112"
"Wolverhampton City Council","http://opendatacommunities.org/id/metropolitan-district-council/wolverhampton","02/11/2017","Governance","ICELAND","4.74","-","Subsistence","5411"
"Wolverhampton City Council","http://opendatacommunities.org/id/metropolitan-district-council/wolverhampton","02/11/2017","Governance","POUNDLAND","1.00","-","Subsistence","5310"
"Wolverhampton City Council","http://opendatacommunities.org/id/metropolitan-district-council/wolverhampton","20/11/2017","Governance","1&1 Internet Ltd","53.50","-","Subscriptions","4816"
"Wolverhampton City Council","http://opendatacommunities.org/id/metropolitan-district-council/wolverhampton","28/11/2017","Governance","RYMAN","12.49","-","Stationary","5943"
"Wolverhampton City Council","http://opendatacommunities.org/id/metropolitan-district-council/wolverhampton","01/12/2017","Governance","VENUE CATERING","558.50","-","Conference Expenses","8299"
"Wolverhampton City Council","http://opendatacommunities.org/id/metropolitan-district-council/wolverhampton","03/12/2017","Governance","SURVEY MONKEY","336.00","-","Subscriptions","5968"
"Wolverhampton City Council","http://opendatacommunities.org/id/metropolitan-district-council/wolverhampton","05/12/2017","Governance","RYMAN","14.98","-","Stationary","5943"
"Wolverhampton City Council","http://opendatacommunities.org/id/metropolitan-district-council/wolverhampton","06/12/2017","Governance","RIVERFORD","29.75","-","Subsistence","5499"
"Wolverhampton City Council","http://opendatacommunities.org/id/metropolitan-district-council/wolverhampton","07/12/2017","Governance","ICELAND","6.05","-","Subsistence","5411"
"Wolverhampton City Council","http://opendatacommunities.org/id/metropolitan-district-council/wolverhampton","07/12/2017","Governance","POUNDLAND","0.84","-","Subsistence","5310"
"Wolverhampton City Council","http://opendatacommunities.org/id/metropolitan-district-council/wolverhampton","12/12/2017","Governance","ICELAND","6.09","-","Subsistence","5411"
"Wolverhampton City Council","http://opendatacommunities.org/id/metropolitan-district-council/wolverhampton","14/12/2017","Governance","CUMMINGS BROTHER LOCK","10.00","-","Stationary","5072"
"Wolverhampton City Council","http://opendatacommunities.org/id/metropolitan-district-council/wolverhampton","14/12/2017","Governance","ICELAND","17.39","-","Subsistence","5411"
"Wolverhampton City Council","http://opendatacommunities.org/id/metropolitan-district-council/wolverhampton","21/12/2017","Governance","ASDA","36.49","-","Subsistence","5411"
"Wolverhampton City Council","http://opendatacommunities.org/id/metropolitan-district-council/wolverhampton","13/10/2007","Investments","LUL TICKET MACHINE","20.00","-","Public Transport","4112"
"Wolverhampton City Council","http://opendatacommunities.org/id/metropolitan-district-council/wolverhampton","09/03/2017","Investments","LUL TICKET MACHINE","30.00","-","Public transport","4112"
"Wolverhampton City Council","http://opendatacommunities.org/id/metropolitan-district-council/wolverhampton","09/03/2017","Investments","WEST COAST TRAINS","7.50","-","Public transport","4112"
"Wolverhampton City Council","http://opendatacommunities.org/id/metropolitan-district-council/wolverhampton","21/03/2017","Investments","WCT CATERING","7.30","-","Subsistence","5812"
"Wolverhampton City Council","http://opendatacommunities.org/id/metropolitan-district-council/wolverhampton","28/03/2017","Investments","WEST COAST TRAINS","24.00","-","Public transport","4112"
"Wolverhampton City Council","http://opendatacommunities.org/id/metropolitan-district-council/wolverhampton","28/03/2017","Investments","WEST COAST TRAINS","7.50","-","Public transport","4112"
"Wolverhampton City Council","http://opendatacommunities.org/id/metropolitan-district-council/wolverhampton","19/04/2017","Investments","WEST COAST TRAINS","15.00","-","Public transport","4112"
"Wolverhampton City Council","http://opendatacommunities.org/id/metropolitan-district-council/wolverhampton","19/04/2017","Investments","PRET A MANGER","2.79","-","Subsistence","5812"
"Wolverhampton City Council","http://opendatacommunities.org/id/metropolitan-district-council/wolverhampton","19/04/2017","Investments","PRET A MANGER","6.19","-","Subsistence","5812"
"Wolverhampton City Council","http://opendatacommunities.org/id/metropolitan-district-council/wolverhampton","20/04/2017","Investments","WEST COAST TRAINS","7.50","-","Public transport","4112"
"Wolverhampton City Council","http://opendatacommunities.org/id/metropolitan-district-council/wolverhampton","20/04/2017","Investments","WEST COAST TRAINS","2.00","-","Subsistence","4112"
"Wolverhampton City Council","http://opendatacommunities.org/id/metropolitan-district-council/wolverhampton","20/04/2017","Investments","WEST COAST TRAINS","4.67","-","Subsistence","4112"
"Wolverhampton City Council","http://opendatacommunities.org/id/metropolitan-district-council/wolverhampton","27/04/2017","Investments","WEST COAST TRAINS","10.00","-","Public transport","4112"
"Wolverhampton City Council","http://opendatacommunities.org/id/metropolitan-district-council/wolverhampton","06/09/2017","Investments","CFAUK","270.00","-","Training","8299"
"Wolverhampton City Council","http://opendatacommunities.org/id/metropolitan-district-council/wolverhampton","08/09/2017","Investments","WEST COAST TRAINS","10.00","-","Public Transport","4112"
"Wolverhampton City Council","http://opendatacommunities.org/id/metropolitan-district-council/wolverhampton","08/09/2017","Investments","WCT CATERING","4.58","-","Subsistence","5812"
"Wolverhampton City Council","http://opendatacommunities.org/id/metropolitan-district-council/wolverhampton","11/09/2017","Investments","HAMPTON INNS","95.00","-","Accommodation Costs","7011"
"Wolverhampton City Council","http://opendatacommunities.org/id/metropolitan-district-council/wolverhampton","11/09/2017","Investments","CAFFE NERO","4.80","-","Subsistence","5812"
"Wolverhampton City Council","http://opendatacommunities.org/id/metropolitan-district-council/wolverhampton","11/09/2017","Investments","GLOUCESTER SOUTH PENRITH","35.29","-","Subsistence","5812"
"Wolverhampton City Council","http://opendatacommunities.org/id/metropolitan-district-council/wolverhampton","11/09/2017","Investments","HARVESTER CROWN","199.42","-","Subsistence","5812"
"Wolverhampton City Council","http://opendatacommunities.org/id/metropolitan-district-council/wolverhampton","12/09/2017","Investments","LUL TICKET MACHINE","20.00","-","Public Transport","4112"
"Wolverhampton City Council","http://opendatacommunities.org/id/metropolitan-district-council/wolverhampton","12/09/2017","Investments","BEEFEATER","215.59","-","Subsistence","5812"
"Wolverhampton City Council","http://opendatacommunities.org/id/metropolitan-district-council/wolverhampton","12/09/2017","Investments","CAFFE NERO","2.92","-","Subsistence","5812"
"Wolverhampton City Council","http://opendatacommunities.org/id/metropolitan-district-council/wolverhampton","12/09/2017","Investments","CAFFE NERO","2.25","-","Subsistence","5812"
"Wolverhampton City Council","http://opendatacommunities.org/id/metropolitan-district-council/wolverhampton","12/09/2017","Investments","CO-OP GROUP FOOD","6.12","-","Subsistence","5411"
"Wolverhampton City Council","http://opendatacommunities.org/id/metropolitan-district-council/wolverhampton","12/09/2017","Investments","PASTY SHOP","6.23","-","Subsistence","5812"
"Wolverhampton City Council","http://opendatacommunities.org/id/metropolitan-district-council/wolverhampton","12/09/2017","Investments","PRET A MANGER","2.17","-","Subsistence","5812"
"Wolverhampton City Council","http://opendatacommunities.org/id/metropolitan-district-council/wolverhampton","12/09/2017","Investments","ROADCHEF","34.58","-","Subsistence","5812"
"Wolverhampton City Council","http://opendatacommunities.org/id/metropolitan-district-council/wolverhampton","13/09/2017","Investments","FORGANS GLASGOW","22.21","-","Subsistence","5812"
"Wolverhampton City Council","http://opendatacommunities.org/id/metropolitan-district-council/wolverhampton","13/09/2017","Investments","FREESTATE COFFEE LONDON","1.67","-","Subsistence","5812"
"Wolverhampton City Council","http://opendatacommunities.org/id/metropolitan-district-council/wolverhampton","13/09/2017","Investments","GROUSE AND ALE HIGH WYCOMBE","167.93","-","Subsistence","5812"
"Wolverhampton City Council","http://opendatacommunities.org/id/metropolitan-district-council/wolverhampton","13/09/2017","Investments","THE BRITISH LIBRARY","8.21","-","Subsistence","5811"
"Wolverhampton City Council","http://opendatacommunities.org/id/metropolitan-district-council/wolverhampton","13/09/2017","Investments","THIWANYA LONDON","10.00","-","Subsistence","5812"
"Wolverhampton City Council","http://opendatacommunities.org/id/metropolitan-district-council/wolverhampton","14/09/2017","Investments","LUL TICKET MACHINE","20.00","-","Public Transport","4112"
"Wolverhampton City Council","http://opendatacommunities.org/id/metropolitan-district-council/wolverhampton","14/09/2017","Investments","SOHO COFFEE","3.91","-","Subsistence","5812"
"Wolverhampton City Council","http://opendatacommunities.org/id/metropolitan-district-council/wolverhampton","14/09/2017","Investments","SOHO COFFEE","4.87","-","Subsistence","5812"
"Wolverhampton City Council","http://opendatacommunities.org/id/metropolitan-district-council/wolverhampton","14/09/2017","Investments","SUN HILL COWES","0.00","-","Subsistence","5812"
"Wolverhampton City Council","http://opendatacommunities.org/id/metropolitan-district-council/wolverhampton","15/09/2017","Investments","WEST COAST TRAINS","30.00","-","Public Transport","4112"
"Wolverhampton City Council","http://opendatacommunities.org/id/metropolitan-district-council/wolverhampton","15/09/2017","Investments","M&S Simply Food","5.10","-","Subsistence","5812"
"Wolverhampton City Council","http://opendatacommunities.org/id/metropolitan-district-council/wolverhampton","18/09/2017","Investments","LUL TICKET MACHINE","80.00","-","Public Transport","4112"
"Wolverhampton City Council","http://opendatacommunities.org/id/metropolitan-district-council/wolverhampton","18/09/2017","Investments","CHIPOLTE MEXICAN GRILL","8.10","-","Subsistence","5812"
"Wolverhampton City Council","http://opendatacommunities.org/id/metropolitan-district-council/wolverhampton","18/09/2017","Investments","EAT","5.12","-","Subsistence","5811"
"Wolverhampton City Council","http://opendatacommunities.org/id/metropolitan-district-council/wolverhampton","19/09/2017","Investments","CAFFE NERO","1.67","-","Subsistence","5812"
"Wolverhampton City Council","http://opendatacommunities.org/id/metropolitan-district-council/wolverhampton","19/09/2017","Investments","CAFFE NERO","1.75","-","Subsistence","5812"
"Wolverhampton City Council","http://opendatacommunities.org/id/metropolitan-district-council/wolverhampton","19/09/2017","Investments","CAFFE NERO","2.60","-","Subsistence","5812"
"Wolverhampton City Council","http://opendatacommunities.org/id/metropolitan-district-council/wolverhampton","19/09/2017","Investments","DDF BARRIERLINE","8.56","-","Subsistence","5812"
"Wolverhampton City Council","http://opendatacommunities.org/id/metropolitan-district-council/wolverhampton","19/09/2017","Investments","M&S Simply Food","6.00","-","Subsistence","5812"
"Wolverhampton City Council","http://opendatacommunities.org/id/metropolitan-district-council/wolverhampton","20/09/2017","Investments","BIERSCHENKE LONDON","9.08","-","Subsistence","5812"
"Wolverhampton City Council","http://opendatacommunities.org/id/metropolitan-district-council/wolverhampton","20/09/2017","Investments","BURGER KING","13.18","-","Subsistence","5812"
"Wolverhampton City Council","http://opendatacommunities.org/id/metropolitan-district-council/wolverhampton","20/09/2017","Investments","CMY LTD GLASGOW","12.40","-","Subsistence","5811"
"Wolverhampton City Council","http://opendatacommunities.org/id/metropolitan-district-council/wolverhampton","20/09/2017","Investments","SAINT 296 LIMITED","2.33","-","Subsistence","5811"
"Wolverhampton City Council","http://opendatacommunities.org/id/metropolitan-district-council/wolverhampton","21/09/2017","Investments","LUL TICKET MACHINE","20.00","-","Public Transport","4112"
"Wolverhampton City Council","http://opendatacommunities.org/id/metropolitan-district-council/wolverhampton","22/09/2017","Investments","LUL TICKET MACHINE","4.90","-","Public Transport","4112"
"Wolverhampton City Council","http://opendatacommunities.org/id/metropolitan-district-council/wolverhampton","22/09/2017","Investments","WEST COAST TRAINS","4.50","-","Public Transport","4112"
"Wolverhampton City Council","http://opendatacommunities.org/id/metropolitan-district-council/wolverhampton","22/09/2017","Investments","WEST COAST TRAINS","10.00","-","Public Transport","4112"
"Wolverhampton City Council","http://opendatacommunities.org/id/metropolitan-district-council/wolverhampton","22/09/2017","Investments","CAFFE NERO","1.67","-","Subsistence","5812"
"Wolverhampton City Council","http://opendatacommunities.org/id/metropolitan-district-council/wolverhampton","22/09/2017","Investments","CAFFE NERO","1.75","-","Subsistence","5812"
"Wolverhampton City Council","http://opendatacommunities.org/id/metropolitan-district-council/wolverhampton","25/09/2017","Investments","STARBUCKS","3.25","-","Subsistence","5812"
"Wolverhampton City Council","http://opendatacommunities.org/id/metropolitan-district-council/wolverhampton","27/09/2017","Investments","LUL TICKET MACHINE","1116.05","-","Public Transport","4112"
"Wolverhampton City Council","http://opendatacommunities.org/id/metropolitan-district-council/wolverhampton","29/09/2017","Investments","D J BARRONS","0.93","-","Public Transport","5192"
"Wolverhampton City Council","http://opendatacommunities.org/id/metropolitan-district-council/wolverhampton","02/10/2017","Investments","CO-OP GROUP FOOD","6.71","-","Subsistence","5411"
"Wolverhampton City Council","http://opendatacommunities.org/id/metropolitan-district-council/wolverhampton","02/10/2017","Investments","PRET A MANGER","5.94","-","Subsistence","5812"
"Wolverhampton City Council","http://opendatacommunities.org/id/metropolitan-district-council/wolverhampton","03/10/2017","Investments","LUL TICKET MACHINE","20.00","-","Public Transport","4112"
"Wolverhampton City Council","http://opendatacommunities.org/id/metropolitan-district-council/wolverhampton","03/10/2017","Investments","WEST COAST TRAINS","88.00","-","Public Transport","4112"
"Wolverhampton City Council","http://opendatacommunities.org/id/metropolitan-district-council/wolverhampton","03/10/2017","Investments","PANE E CAFFE","6.15","-","Subsistence","5812"
"Wolverhampton City Council","http://opendatacommunities.org/id/metropolitan-district-council/wolverhampton","03/10/2017","Investments","PRET A MANGER","1.50","-","Subsistence","5812"
"Wolverhampton City Council","http://opendatacommunities.org/id/metropolitan-district-council/wolverhampton","03/10/2017","Investments","PRET A MANGER","2.49","-","Subsistence","5812"
"Wolverhampton City Council","http://opendatacommunities.org/id/metropolitan-district-council/wolverhampton","04/10/2017","Investments","WEST COAST TRAINS","10.00","-","Public Transport","4112"
"Wolverhampton City Council","http://opendatacommunities.org/id/metropolitan-district-council/wolverhampton","04/10/2017","Investments","BURGER KING","5.82","-","Subsistence","5812"
"Wolverhampton City Council","http://opendatacommunities.org/id/metropolitan-district-council/wolverhampton","04/10/2017","Investments","NANDOS","10.08","-","Subsistence","5812"
"Wolverhampton City Council","http://opendatacommunities.org/id/metropolitan-district-council/wolverhampton","04/10/2017","Investments","PRET A MANGER","5.04","-","Subsistence","5812"
"Wolverhampton City Council","http://opendatacommunities.org/id/metropolitan-district-council/wolverhampton","06/10/2017","Investments","WEST COAST TRAINS","10.00","-","Public Transport","4112"
"Wolverhampton City Council","http://opendatacommunities.org/id/metropolitan-district-council/wolverhampton","11/10/2017","Investments","VIRGIN TRAINS","66.55","-","Public Transport","4112"
"Wolverhampton City Council","http://opendatacommunities.org/id/metropolitan-district-council/wolverhampton","12/10/2017","Investments","LUL TICKET MACHINE","30.00","-","Public Transport","4112"
"Wolverhampton City Council","http://opendatacommunities.org/id/metropolitan-district-council/wolverhampton","12/10/2017","Investments","WEST COAST TRAINS","10.00","-","Public Transport","4112"
"Wolverhampton City Council","http://opendatacommunities.org/id/metropolitan-district-council/wolverhampton","13/10/2017","Investments","WEST COAST TRAINS","56.80","-","Public Transport","4112"
"Wolverhampton City Council","http://opendatacommunities.org/id/metropolitan-district-council/wolverhampton","13/10/2017","Investments","WEST COAST TRAINS","12.00","-","Public Transport","4112"
"Wolverhampton City Council","http://opendatacommunities.org/id/metropolitan-district-council/wolverhampton","13/10/2017","Investments","WEST COAST TRAINS","10.00","-","Public Transport","4112"
"Wolverhampton City Council","http://opendatacommunities.org/id/metropolitan-district-council/wolverhampton","13/10/2017","Investments","CAFFE NERO","1.67","-","Subsistence","5812"
"Wolverhampton City Council","http://opendatacommunities.org/id/metropolitan-district-council/wolverhampton","13/10/2017","Investments","CAFFE NERO","1.75","-","Subsistence","5812"
"Wolverhampton City Council","http://opendatacommunities.org/id/metropolitan-district-council/wolverhampton","13/10/2017","Investments","CAFFE NERO","2.10","-","Subsistence","5812"
"Wolverhampton City Council","http://opendatacommunities.org/id/metropolitan-district-council/wolverhampton","13/10/2017","Investments","COSTA","4.46","-","Subsistence","5812"
"Wolverhampton City Council","http://opendatacommunities.org/id/metropolitan-district-council/wolverhampton","13/10/2017","Investments","COSTA","3.70","-","Subsistence","5812"
"Wolverhampton City Council","http://opendatacommunities.org/id/metropolitan-district-council/wolverhampton","13/10/2017","Investments","M&S Simply Food","5.20","-","Subsistence","5812"
"Wolverhampton City Council","http://opendatacommunities.org/id/metropolitan-district-council/wolverhampton","13/10/2017","Investments","PRET A MANGER","1.99","-","Subsistence","5812"
"Wolverhampton City Council","http://opendatacommunities.org/id/metropolitan-district-council/wolverhampton","13/10/2017","Investments","PUMPKIN","1.87","-","Subsistence","5811"
"Wolverhampton City Council","http://opendatacommunities.org/id/metropolitan-district-council/wolverhampton","13/10/2017","Investments","PUMPKIN","3.64","-","Subsistence","5811"
"Wolverhampton City Council","http://opendatacommunities.org/id/metropolitan-district-council/wolverhampton","16/10/2017","Investments","PUMPKIN","1.66","-","Public Transport","5811"
"Wolverhampton City Council","http://opendatacommunities.org/id/metropolitan-district-council/wolverhampton","16/10/2017","Investments","PUMPKIN","3.98","-","Public Transport","5811"
"Wolverhampton City Council","http://opendatacommunities.org/id/metropolitan-district-council/wolverhampton","16/10/2017","Investments","COSTA","2.00","-","Subsistence","5812"
"Wolverhampton City Council","http://opendatacommunities.org/id/metropolitan-district-council/wolverhampton","16/10/2017","Investments","M&S Simply Food","5.45","-","Subsistence","5812"
"Wolverhampton City Council","http://opendatacommunities.org/id/metropolitan-district-council/wolverhampton","16/10/2017","Investments","WEST COAST TRAINS","10.00","-","Subsistence","4112"
"Wolverhampton City Council","http://opendatacommunities.org/id/metropolitan-district-council/wolverhampton","17/10/2017","Investments","CAFFE NERO","1.67","-","Subsistence","5812"
"Wolverhampton City Council","http://opendatacommunities.org/id/metropolitan-district-council/wolverhampton","17/10/2017","Investments","CAFFE NERO","1.75","-","Subsistence","5812"
"Wolverhampton City Council","http://opendatacommunities.org/id/metropolitan-district-council/wolverhampton","17/10/2017","Investments","M&S Simply Food","2.80","-","Subsistence","5812"
"Wolverhampton City Council","http://opendatacommunities.org/id/metropolitan-district-council/wolverhampton","17/10/2017","Investments","PRET A MANGER","1.99","-","Subsistence","5812"
"Wolverhampton City Council","http://opendatacommunities.org/id/metropolitan-district-council/wolverhampton","18/10/2017","Investments","WEST COAST TRAINS","88.00","-","Public Transport","4112"
"Wolverhampton City Council","http://opendatacommunities.org/id/metropolitan-district-council/wolverhampton","18/10/2017","Investments","ALBERT COTTAGE HOTEL EAST COWES","2.83","-","Subsistence","7011"
"Wolverhampton City Council","http://opendatacommunities.org/id/metropolitan-district-council/wolverhampton","18/10/2017","Investments","CAFFE NERO","3.75","-","Subsistence","5812"
"Wolverhampton City Council","http://opendatacommunities.org/id/metropolitan-district-council/wolverhampton","19/10/2017","Investments","GRAND HARBOUR HOTEL","109.58","-","Accommodation Costs","7011"
"Wolverhampton City Council","http://opendatacommunities.org/id/metropolitan-district-council/wolverhampton","19/10/2017","Investments","WEST COAST TRAINS","24.17","-","Public Transport","4112"
"Wolverhampton City Council","http://opendatacommunities.org/id/metropolitan-district-council/wolverhampton","20/10/2017","Investments","WEST COAST TRAINS","108.33","-","Public Transport","4112"
"Wolverhampton City Council","http://opendatacommunities.org/id/metropolitan-district-council/wolverhampton","20/10/2017","Investments","WEST COAST TRAINS","2.25","-","Subsistence","4112"
"Wolverhampton City Council","http://opendatacommunities.org/id/metropolitan-district-council/wolverhampton","24/10/2017","Investments","IVEY PUBLISHING","4.89","-","Subsistence","5192"
"Wolverhampton City Council","http://opendatacommunities.org/id/metropolitan-district-council/wolverhampton","25/10/2017","Investments","WEST COAST TRAINS","10.00","-","Public Transport","4112"
"Wolverhampton City Council","http://opendatacommunities.org/id/metropolitan-district-council/wolverhampton","31/10/2017","Investments","CREATIVE PHOTO","20.68","-","Stationary","5044"
"Wolverhampton City Council","http://opendatacommunities.org/id/metropolitan-district-council/wolverhampton","31/10/2017","Investments","CAFFE NERO","1.67","-","Subsistence","5812"
"Wolverhampton City Council","http://opendatacommunities.org/id/metropolitan-district-council/wolverhampton","31/10/2017","Investments","M&S Simply Food","4.05","-","Subsistence","5812"
"Wolverhampton City Council","http://opendatacommunities.org/id/metropolitan-district-council/wolverhampton","01/11/2017","Investments","LUL TICKET MACHINE","20.00","-","Public Transport","4112"
"Wolverhampton City Council","http://opendatacommunities.org/id/metropolitan-district-council/wolverhampton","01/11/2017","Investments","CAFFE NERO","3.92","-","Subsistence","5812"
"Wolverhampton City Council","http://opendatacommunities.org/id/metropolitan-district-council/wolverhampton","01/11/2017","Investments","M&S Simply Food","4.00","-","Subsistence","5812"
"Wolverhampton City Council","http://opendatacommunities.org/id/metropolitan-district-council/wolverhampton","02/11/2017","Investments","WSJE SUBSCRIPTIONS","-91.73","-","Subscriptions","5968"
"Wolverhampton City Council","http://opendatacommunities.org/id/metropolitan-district-council/wolverhampton","03/11/2017","Investments","CAFFE NERO","1.75","-","Subsistence","5812"
"Wolverhampton City Council","http://opendatacommunities.org/id/metropolitan-district-council/wolverhampton","03/11/2017","Investments","CAFFE NERO","2.25","-","Subsistence","5812"
"Wolverhampton City Council","http://opendatacommunities.org/id/metropolitan-district-council/wolverhampton","07/11/2017","Investments","FLAT IRON STEAK","2.18","-","Subsistence","5812"
"Wolverhampton City Council","http://opendatacommunities.org/id/metropolitan-district-council/wolverhampton","07/11/2017","Investments","FLAT IRON STEAK","14.60","-","Subsistence","5812"
"Wolverhampton City Council","http://opendatacommunities.org/id/metropolitan-district-council/wolverhampton","08/11/2017","Investments","ARTIGIANO","1.88","-","Subsistence","5812"
"Wolverhampton City Council","http://opendatacommunities.org/id/metropolitan-district-council/wolverhampton","08/11/2017","Investments","ARTIGIANO","4.50","-","Subsistence","5812"
"Wolverhampton City Council","http://opendatacommunities.org/id/metropolitan-district-council/wolverhampton","08/11/2017","Investments","BREAD STREET Kitchen","17.16","-","Subsistence","5812"
"Wolverhampton City Council","http://opendatacommunities.org/id/metropolitan-district-council/wolverhampton","08/11/2017","Investments","CAFFE NERO","3.75","-","Subsistence","5812"
"Wolverhampton City Council","http://opendatacommunities.org/id/metropolitan-district-council/wolverhampton","08/11/2017","Investments","MAISON DU MEZZE","21.00","-","Subsistence","5812"
"Wolverhampton City Council","http://opendatacommunities.org/id/metropolitan-district-council/wolverhampton","08/11/2017","Investments","POD LONDON","5.82","-","Subsistence","5812"
"Wolverhampton City Council","http://opendatacommunities.org/id/metropolitan-district-council/wolverhampton","09/11/2017","Investments","The Thompson Chicago","1466.23","-","Accommodation Costs","7011"
"Wolverhampton City Council","http://opendatacommunities.org/id/metropolitan-district-council/wolverhampton","09/11/2017","Investments","CAFFE NERO","2.25","-","Subsistence","5812"
"Wolverhampton City Council","http://opendatacommunities.org/id/metropolitan-district-council/wolverhampton","09/11/2017","Investments","PREMIER INN","5.00","-","Subsistence","7011"
"Wolverhampton City Council","http://opendatacommunities.org/id/metropolitan-district-council/wolverhampton","09/11/2017","Investments","PRET A MANGER","3.49","-","Subsistence","5812"
"Wolverhampton City Council","http://opendatacommunities.org/id/metropolitan-district-council/wolverhampton","09/11/2017","Investments","SMOKING GOAT","33.34","-","Subsistence","5812"
"Wolverhampton City Council","http://opendatacommunities.org/id/metropolitan-district-council/wolverhampton","10/11/2017","Investments","TRAINLINE","18.11","-","Public Transport","4112"
"Wolverhampton City Council","http://opendatacommunities.org/id/metropolitan-district-council/wolverhampton","10/11/2017","Investments","WEST COAST TRAINS","10.00","-","Public Transport","4112"
"Wolverhampton City Council","http://opendatacommunities.org/id/metropolitan-district-council/wolverhampton","10/11/2017","Investments","WEST COAST TRAINS","12.00","-","Public Transport","4112"
"Wolverhampton City Council","http://opendatacommunities.org/id/metropolitan-district-council/wolverhampton","14/11/2017","Investments","TRAVELODGE","174.79","-","Accommodation Costs","7011"
"Wolverhampton City Council","http://opendatacommunities.org/id/metropolitan-district-council/wolverhampton","14/11/2017","Investments","LUL TICKET MACHINE","20.00","-","Public Transport","4112"
"Wolverhampton City Council","http://opendatacommunities.org/id/metropolitan-district-council/wolverhampton","14/11/2017","Investments","WCT CATERING","3.80","-","Subsistence","5812"
"Wolverhampton City Council","http://opendatacommunities.org/id/metropolitan-district-council/wolverhampton","15/11/2017","Investments","WEST COAST TRAINS","10.00","-","Public Transport","4112"
"Wolverhampton City Council","http://opendatacommunities.org/id/metropolitan-district-council/wolverhampton","15/11/2017","Investments","TRAVELODGE","9.85","-","Subsistence","7011"
"Wolverhampton City Council","http://opendatacommunities.org/id/metropolitan-district-council/wolverhampton","15/11/2017","Investments","WCT CATERING","2.40","-","Subsistence","5812"
"Wolverhampton City Council","http://opendatacommunities.org/id/metropolitan-district-council/wolverhampton","15/11/2017","Investments","WCT CATERING","2.91","-","Subsistence","5812"
"Wolverhampton City Council","http://opendatacommunities.org/id/metropolitan-district-council/wolverhampton","16/11/2017","Investments","CAFFE NERO","3.75","-","Subsistence","5812"
"Wolverhampton City Council","http://opendatacommunities.org/id/metropolitan-district-council/wolverhampton","17/11/2017","Investments","ARRIVA TRAINS WALE CHESTER","13.40","-","Subsistence","4511"
"Wolverhampton City Council","http://opendatacommunities.org/id/metropolitan-district-council/wolverhampton","22/11/2017","Investments","WCT CATERING","3.80","-","Subsistence","5812"
"Wolverhampton City Council","http://opendatacommunities.org/id/metropolitan-district-council/wolverhampton","23/11/2017","Investments","FRANCO MANCA LONDON","8.30","-","Subsistence","5812"
"Wolverhampton City Council","http://opendatacommunities.org/id/metropolitan-district-council/wolverhampton","24/11/2017","Investments","WEST COAST TRAINS","10.00","-","Public Transport","4112"
"Wolverhampton City Council","http://opendatacommunities.org/id/metropolitan-district-council/wolverhampton","24/11/2017","Investments","WEST COAST TRAINS","180.60","-","Public Transport","4112"
"Wolverhampton City Council","http://opendatacommunities.org/id/metropolitan-district-council/wolverhampton","24/11/2017","Investments","PRET A MANGER","5.40","-","Subsistence","5812"
"Wolverhampton City Council","http://opendatacommunities.org/id/metropolitan-district-council/wolverhampton","24/11/2017","Investments","WEST COAST TRAINS","5.50","-","Subsistence","4112"
"Wolverhampton City Council","http://opendatacommunities.org/id/metropolitan-district-council/wolverhampton","26/11/2017","Investments","LUL TICKET MACHINE","50.00","-","Public Transport","4112"
"Wolverhampton City Council","http://opendatacommunities.org/id/metropolitan-district-council/wolverhampton","28/11/2017","Investments","LUL TICKET MACHINE","20.00","-","Public Transport","4112"
"Wolverhampton City Council","http://opendatacommunities.org/id/metropolitan-district-council/wolverhampton","28/11/2017","Investments","PRET A MANGER","1.50","-","Subsistence","5812"
"Wolverhampton City Council","http://opendatacommunities.org/id/metropolitan-district-council/wolverhampton","28/11/2017","Investments","PRET A MANGER","2.49","-","Subsistence","5812"
"Wolverhampton City Council","http://opendatacommunities.org/id/metropolitan-district-council/wolverhampton","29/11/2017","Investments","WCT CATERING","5.50","-","Subsistence","5812"
"Wolverhampton City Council","http://opendatacommunities.org/id/metropolitan-district-council/wolverhampton","30/11/2017","Investments","PRET A MANGER","2.49","-","Subsistence","5812"
"Wolverhampton City Council","http://opendatacommunities.org/id/metropolitan-district-council/wolverhampton","01/12/2017","Investments","WEST COAST TRAINS","364.00","-","Public Transport","4112"
"Wolverhampton City Council","http://opendatacommunities.org/id/metropolitan-district-council/wolverhampton","01/12/2017","Investments","WEST COAST TRAINS","10.00","-","Public Transport","4112"
"Wolverhampton City Council","http://opendatacommunities.org/id/metropolitan-district-council/wolverhampton","01/12/2017","Investments","WEST COAST TRAINS","10.00","-","Public Transport","4112"
"Wolverhampton City Council","http://opendatacommunities.org/id/metropolitan-district-council/wolverhampton","01/12/2017","Investments","WCT CATERING","6.83","-","Subsistence","5812"
"Wolverhampton City Council","http://opendatacommunities.org/id/metropolitan-district-council/wolverhampton","06/12/2017","Investments","CAFFE NERO","3.75","-","Subsistence","5812"
"Wolverhampton City Council","http://opendatacommunities.org/id/metropolitan-district-council/wolverhampton","07/12/2017","Investments","WEST COAST TRAINS","10.00","-","Public Transport","4112"
"Wolverhampton City Council","http://opendatacommunities.org/id/metropolitan-district-council/wolverhampton","07/12/2017","Investments","PUMPKIN","5.94","-","Subsistence","5811"
"Wolverhampton City Council","http://opendatacommunities.org/id/metropolitan-district-council/wolverhampton","08/12/2017","Investments","TAXI FAIR","10.00","-","Public Transport","4121"
"Wolverhampton City Council","http://opendatacommunities.org/id/metropolitan-district-council/wolverhampton","08/12/2017","Investments","TAXI FAIR","10.40","-","Public Transport","4121"
"Wolverhampton City Council","http://opendatacommunities.org/id/metropolitan-district-council/wolverhampton","08/12/2017","Investments","PPXC TRAINS CATERING","2.30","-","Subsistence","5811"
"Wolverhampton City Council","http://opendatacommunities.org/id/metropolitan-district-council/wolverhampton","12/12/2017","Investments","VIRGIN TRAINS","55.10","-","Public Transport","4112"
"Wolverhampton City Council","http://opendatacommunities.org/id/metropolitan-district-council/wolverhampton","13/12/2017","Investments","VIRGIN TRAINS","101.55","-","Public Transport","4112"
"Wolverhampton City Council","http://opendatacommunities.org/id/metropolitan-district-council/wolverhampton","14/12/2017","Investments","HEALTHY RETAIL LIMITED","1.60","-","Public Transport","4121"
"Wolverhampton City Council","http://opendatacommunities.org/id/metropolitan-district-council/wolverhampton","14/12/2017","Investments","HEALTHY RETAIL LIMITED","1.87","-","Public Transport","4121"
"Wolverhampton City Council","http://opendatacommunities.org/id/metropolitan-district-council/wolverhampton","14/12/2017","Investments","LUL TICKET MACHINE","20.00","-","Public Transport","4112"
"Wolverhampton City Council","http://opendatacommunities.org/id/metropolitan-district-council/wolverhampton","14/12/2017","Investments","TAXI FAIR","9.98","-","Public Transport","4121"
"Wolverhampton City Council","http://opendatacommunities.org/id/metropolitan-district-council/wolverhampton","14/12/2017","Investments","THE BRITISH LIBRARY","1.70","-","Subsistence","5811"
"Wolverhampton City Council","http://opendatacommunities.org/id/metropolitan-district-council/wolverhampton","14/12/2017","Investments","WCT CATERING","6.50","-","Subsistence","5812"
"Wolverhampton City Council","http://opendatacommunities.org/id/metropolitan-district-council/wolverhampton","15/12/2017","Investments","PPXC TRAINS CATERING","1.50","-","Public Transport","5811"
"Wolverhampton City Council","http://opendatacommunities.org/id/metropolitan-district-council/wolverhampton","15/12/2017","Investments","PPXC TRAINS CATERING","0.90","-","Public Transport","5811"
"Wolverhampton City Council","http://opendatacommunities.org/id/metropolitan-district-council/wolverhampton","15/12/2017","Investments","WEST COAST TRAINS","10.00","-","Public Transport","4112"
"Wolverhampton City Council","http://opendatacommunities.org/id/metropolitan-district-council/wolverhampton","18/12/2017","Investments","GET THE FOCACCIA","6.95","-","Subsistence","5811"
"Wolverhampton City Council","http://opendatacommunities.org/id/metropolitan-district-council/wolverhampton","19/12/2017","Investments","EAT","3.50","-","Subsistence","5811"
"Wolverhampton City Council","http://opendatacommunities.org/id/metropolitan-district-council/wolverhampton","21/12/2017","Investments","LUL TICKET MACHINE","20.00","-","Public Transport","4112"
"Wolverhampton City Council","http://opendatacommunities.org/id/metropolitan-district-council/wolverhampton","21/12/2017","Investments","VIRGIN TRAINS","45.05","-","Public Transport","4112"
"Wolverhampton City Council","http://opendatacommunities.org/id/metropolitan-district-council/wolverhampton","21/12/2017","Investments","M&S Simply Food","4.05","-","Subsistence","5812"
"Wolverhampton City Council","http://opendatacommunities.org/id/metropolitan-district-council/wolverhampton","22/12/2017","Investments","RAC PALL CLUBHOUS","205.00","-","Conference Expenses","8299"
"Wolverhampton City Council","http://opendatacommunities.org/id/metropolitan-district-council/wolverhampton","02/10/2017","LGPS","VIRGIN TRAINS","67.55","-","Public Transport","4112"
"Wolverhampton City Council","http://opendatacommunities.org/id/metropolitan-district-council/wolverhampton","05/10/2017","LGPS","VIRGIN TRAINS","50.50","-","Public Transport","4112"
"Wolverhampton City Council","http://opendatacommunities.org/id/metropolitan-district-council/wolverhampton","09/10/2017","LGPS","CROSS COUNTRY TRAINS","28.40","-","Public Transport","4112"
"Wolverhampton City Council","http://opendatacommunities.org/id/metropolitan-district-council/wolverhampton","09/10/2017","LGPS","VIRGIN TRAINS","67.55","-","Public Transport","4112"
"Wolverhampton City Council","http://opendatacommunities.org/id/metropolitan-district-council/wolverhampton","10/10/2017","LGPS","PREMIER INN","158.48","-","Accommodation Costs","7011"
"Wolverhampton City Council","http://opendatacommunities.org/id/metropolitan-district-council/wolverhampton","10/10/2017","LGPS","PREMIER INN","178.98","-","Accommodation Costs","7011"
"Wolverhampton City Council","http://opendatacommunities.org/id/metropolitan-district-council/wolverhampton","10/10/2017","LGPS","EAST MIDLANDS TRAINS","66.50","-","Public Transport","4112"
"Wolverhampton City Council","http://opendatacommunities.org/id/metropolitan-district-council/wolverhampton","13/10/2017","LGPS","PREMIER INN","161.49","-","Accommodation Costs","7011"
"Wolverhampton City Council","http://opendatacommunities.org/id/metropolitan-district-council/wolverhampton","13/10/2017","LGPS","PREMIER INN","72.49","-","Accommodation Costs","7011"
"Wolverhampton City Council","http://opendatacommunities.org/id/metropolitan-district-council/wolverhampton","30/10/2017","LGPS","PREMIER INN","82.99","-","Accommodation Costs","7011"
"Wolverhampton City Council","http://opendatacommunities.org/id/metropolitan-district-council/wolverhampton","12/09/2017","Pensions operations","THE BALCONY","5.50","-","Subsistence","5812"
"Wolverhampton City Council","http://opendatacommunities.org/id/metropolitan-district-council/wolverhampton","13/09/2017","Pensions operations","STARBUCKS","42.21","-","Subsistence","5812"
"Wolverhampton City Council","http://opendatacommunities.org/id/metropolitan-district-council/wolverhampton","14/09/2017","Pensions operations","MANON CAF� LONDON","2.75","-","Subsistence","5812"
"Wolverhampton City Council","http://opendatacommunities.org/id/metropolitan-district-council/wolverhampton","20/09/2017","Pensions operations","CAFFE NERO","4.85","-","Subsistence","5812"
